{"text_format":"1","workbook":"xlsx","n_sheets":5,"sheets":["N","Instrucciones","BD PRODUCTOS","Tabla","CONTROL INVENTARIO"],"not_rendered":{"charts":0,"images":13,"macros":1,"external_links":0,"defined_names":6,"comments":1,"pivot_tables":0},"unopened":[],"bounds":{"document_bytes":16777216,"sheet_cells":100000,"rows_first":2000,"rows_last":500,"rows_between":2000,"halvings":0,"cell_chars":16384,"cell_head_chars":4096},"cells_cut":0,"cells_raw":0,"read":"whole","date_system":"1900"}

{"sheet":"N","index":0,"n_rows":1000,"n_cols":16,"rows_kept":1000,"cut":false,"hidden":true,"merged":[[5,11,6,12],[5,13,6,13],[4,8,4,9],[11,5,11,7],[11,8,11,10],[11,11,11,13],[8,6,8,7],[8,8,8,9],[2,2,2,3],[3,8,3,9],[5,8,5,9],[6,8,6,9],[7,8,7,9],[2,6,2,9],[4,6,4,7],[5,6,5,7],[6,6,6,7],[7,6,7,7],[3,6,3,7]]}
[]
[]
[null,null,"DATOS BÁSICOS DEL PRODUCTO",null,null,null,"BALANCE"]
[null,null,null,null,null,null,"SALDO INICIAL",null,{"$f":"N14","v":0}]
[null,null,"CÓDIGO",null,null,null,"ENTRADAS",null,{"$f":"SUM(H15:H1000)","v":0}]
[null,null,null,null,null,null,"SALDO FINAL",null,{"$f":"INDIRECT(CONCATENATE(\"N\",MAX(P14:P1000)))","v":{"$error":"#REF!"}},null,null,"CANTIDAD DE UNIDADES DISPONIBLES",null,{"$f":"INDIRECT(CONCATENATE(\"L\",MAX(P14:P1000)))","v":{"$error":"#REF!"}}]
[null,null,"PRODUCTO",{"$f":"IF(D5=\"\",\"\",VLOOKUP(D5,Tabla1[],2,0))","v":""},null,null,"COSTO DE VENTAS",null,{"$f":"I4+I5-I6","v":{"$error":"#REF!"}}]
[null,null,null,null,null,null,"SALIDAS DE INVENTARIO",null,{"$f":"SUM(K15:K1000)","v":0}]
[null,null,"DESCRIPCIÓN",{"$f":"IF(D5=\"\",\"\",VLOOKUP(D5,Tabla1[],3,0))","v":""},null,null,"DIFERENCIA",null,{"$f":"ROUND(I7-I8,0)","v":{"$error":"#REF!"}}]
[]
[]
[null,null,null,null,null,"ENTRADAS A INVENTARIO",null,null,"SALIDAS INVENTARIO",null,null,"SALDO INVENTARIO"]
[null,"FECHA","MOVIMIENTO","DESCRIPCIÓN","Nro. Factura","Cantidad","Costo Unitario","Precio Total","Cantidad","Precio Unidad","Precio Total","Cantidad","Precio Unidad","Precio Total"]
[null,null,null,null,null,null,null,{"$f":"F14*G14","v":0},null,{"$f":"IF(I14<>\"\",M13,0)","v":0},{"$f":"I14*J14","v":0},null,null,{"$f":"L14*M14","v":0},null,{"$f":"IF(AND(L14<>0,L15=0),ROW(L14),0)","v":0}]
[null,null,null,null,null,null,null,{"$f":"F15*G15","v":0},null,{"$f":"IF(I15<>\"\",M14,0)","v":0},{"$f":"I15*J15","v":0},{"$f":"IF(AND(F15<>0,I15=0),L14+F15,IF(AND(I15<>0,F15=0),L14-I15,0))","v":0},{"$f":"IF(AND(F15=0,I15=0),0,IF(F15<>\"\",(N14+H15)/L15,M14))","v":0},{"$f":"L15*M15","v":0},null,{"$f":"IF(AND(L15<>0,L16=0),ROW(L15),0)","v":0}]
[null,null,null,null,null,null,null,{"$f":"F16*G16","v":0},null,{"$f":"IF(I16<>\"\",M15,0)","v":0},{"$f":"I16*J16","v":0},{"$f":"IF(AND(F16<>0,I16=0),L15+F16,IF(AND(I16<>0,F16=0),L15-I16,0))","v":0},{"$f":"IF(AND(F16=0,I16=0),0,IF(F16<>\"\",(N15+H16)/L16,M15))","v":0},{"$f":"L16*M16","v":0},null,{"$f":"IF(AND(L16<>0,L17=0),ROW(L16),0)","v":0}]
[null,null,null,null,null,null,null,{"$f":"F17*G17","v":0},null,0,0,{"$f":"IF(AND(F17<>0,I17=0),L16+F17,IF(AND(I17<>0,F17=0),L16-I17,0))","v":0},0,0,null,0]
[null,null,null,null,null,null,null,{"$f":"F18*G18","v":0},null,0,0,{"$f":"IF(AND(F18<>0,I18=0),L17+F18,IF(AND(I18<>0,F18=0),L17-I18,0))","v":0},0,0,null,0]
[null,null,null,null,null,null,null,{"$f":"F19*G19","v":0},null,0,0,{"$f":"IF(AND(F19<>0,I19=0),L18+F19,IF(AND(I19<>0,F19=0),L18-I19,0))","v":0},0,0,null,0]
[null,null,null,null,null,null,null,0,null,0,0,0,0,0,null,0]
[null,null,null,null,null,null,null,0,null,0,0,0,0,0,null,0]
[null,null,null,null,null,null,null,0,null,0,0,0,0,0,null,0]
[null,null,null,null,null,null,null,0,null,0,0,0,0,0,null,0]
[null,null,null,null,null,null,null,0,null,0,0,0,0,0,null,0]
[null,null,null,null,null,null,null,0,null,0,0,0,0,0,null,0]
[null,null,null,null,null,null,null,0,null,0,0,0,0,0,null,0]
[null,null,null,null,null,null,null,0,null,0,0,0,0,0,null,0]
[null,null,null,null,null,null,null,0,null,0,0,0,0,0,null,0]
[null,null,null,null,null,null,null,0,null,0,0,0,0,0,null,0]
[null,null,null,null,null,null,null,0,null,0,0,0,0,0,null,0]
[null,null,null,null,null,null,null,0,null,0,0,0,0,0,null,0]
[null,null,null,null,null,null,null,0,null,0,0,0,0,0,null,0]
[null,null,null,null,null,null,null,0,null,0,0,0,0,0,null,0]
[null,null,null,null,null,null,null,0,null,0,0,0,0,0,null,0]
[null,null,null,null,null,null,null,0,null,0,0,0,0,0,null,0]
[null,null,null,null,null,null,null,0,null,0,0,0,0,0,null,0]
[null,null,null,null,null,null,null,0,null,0,0,0,0,0,null,0]
[null,null,null,null,null,null,null,0,null,0,0,0,0,0,null,0]
[null,null,null,null,null,null,null,0,null,0,0,0,0,0,null,0]
[null,null,null,null,null,null,null,0,null,0,0,0,0,0,null,0]
[null,null,null,null,null,null,null,0,null,0,0,0,0,0,null,0]
[null,null,null,null,null,null,null,0,null,0,0,0,0,0,null,0]
[null,null,null,null,null,null,null,0,null,0,0,0,0,0,null,0]
[null,null,null,null,null,null,null,0,null,0,0,0,0,0,null,0]
[null,null,null,null,null,null,null,0,null,0,0,0,0,0,null,0]
[null,null,null,null,null,null,null,0,null,0,0,0,0,0,null,0]
[null,null,null,null,null,null,null,0,null,0,0,0,0,0,null,0]
[null,null,null,null,null,null,null,0,null,0,0,0,0,0,null,0]
[null,null,null,null,null,null,null,0,null,0,0,0,0,0,null,0]
[null,null,null,null,null,null,null,0,null,0,0,0,0,0,null,0]
[null,null,null,null,null,null,null,0,null,0,0,0,0,0,null,0]
[null,null,null,null,null,null,null,0,null,0,0,0,0,0,null,0]
[null,null,null,null,null,null,null,0,null,0,0,0,0,0,null,0]
[null,null,null,null,null,null,null,0,null,0,0,0,0,0,null,0]
[null,null,null,null,null,null,null,0,null,0,0,0,0,0,null,0]
[null,null,null,null,null,null,null,0,null,0,0,0,0,0,null,0]
[null,null,null,null,null,null,null,0,null,0,0,0,0,0,null,0]
[null,null,null,null,null,null,null,0,null,0,0,0,0,0,null,0]
[null,null,null,null,null,null,null,0,null,0,0,0,0,0,null,0]
[null,null,null,null,null,null,null,0,null,0,0,0,0,0,null,0]
[null,null,null,null,null,null,null,0,null,0,0,0,0,0,null,0]
[null,null,null,null,null,null,null,0,null,0,0,0,0,0,null,0]
[null,null,null,null,null,null,null,0,null,0,0,0,0,0,null,0]
[null,null,null,null,null,null,null,0,null,0,0,0,0,0,null,0]
[null,null,null,null,null,null,null,0,null,0,0,0,0,0,null,0]
[null,null,null,null,null,null,null,0,null,0,0,0,0,0,null,0]
[null,null,null,null,null,null,null,0,null,0,0,0,0,0,null,0]
[null,null,null,null,null,null,null,0,null,0,0,0,0,0,null,0]
[null,null,null,null,null,null,null,0,null,0,0,0,0,0,null,0]
[null,null,null,null,null,null,null,0,null,0,0,0,0,0,null,0]
[null,null,null,null,null,null,null,0,null,0,0,0,0,0,null,0]
[null,null,null,null,null,null,null,0,null,0,0,0,0,0,null,0]
[null,null,null,null,null,null,null,0,null,0,0,0,0,0,null,0]
[null,null,null,null,null,null,null,0,null,0,0,0,0,0,null,0]
[null,null,null,null,null,null,null,0,null,0,0,0,0,0,null,0]
[null,null,null,null,null,null,null,0,null,0,0,0,0,0,null,0]
[null,null,null,null,null,null,null,0,null,0,0,0,0,0,null,0]
[null,null,null,null,null,null,null,0,null,0,0,0,0,0,null,0]
[null,null,null,null,null,null,null,0,null,0,0,0,0,0,null,0]
[null,null,null,null,null,null,null,0,null,{"$f":"IF(I80<>\"\",M79,0)","v":0},{"$f":"I80*J80","v":0},0,{"$f":"IF(AND(F80=0,I80=0),0,IF(F80<>\"\",(N79+H80)/L80,M79))","v":0},{"$f":"L80*M80","v":0},null,{"$f":"IF(AND(L80<>0,L81=0),ROW(L80),0)","v":0}]
[null,null,null,null,null,null,null,0,null,0,0,0,0,0,null,0]
[null,null,null,null,null,null,null,0,null,0,0,0,0,0,null,0]
[null,null,null,null,null,null,null,{"$f":"F83*G83","v":0},null,0,0,{"$f":"IF(AND(F83<>0,I83=0),L82+F83,IF(AND(I83<>0,F83=0),L82-I83,0))","v":0},0,0,null,0]
[null,null,null,null,null,null,null,0,null,0,0,0,0,0,null,0]
[null,null,null,null,null,null,null,0,null,0,0,0,0,0,null,0]
[null,null,null,null,null,null,null,0,null,0,0,0,0,0,null,0]
[null,null,null,null,null,null,null,0,null,0,0,0,0,0,null,0]
[null,null,null,null,null,null,null,0,null,0,0,0,0,0,null,0]
[null,null,null,null,null,null,null,0,null,0,0,0,0,0,null,0]
[null,null,null,null,null,null,null,0,null,0,0,0,0,0,null,0]
[null,null,null,null,null,null,null,0,null,0,0,0,0,0,null,0]
[null,null,null,null,null,null,null,0,null,0,0,0,0,0,null,0]
[null,null,null,null,null,null,null,0,null,0,0,0,0,0,null,0]
[null,null,null,null,null,null,null,0,null,0,0,0,0,0,null,0]
[null,null,null,null,null,null,null,0,null,0,0,0,0,0,null,0]
[null,null,null,null,null,null,null,0,null,0,0,0,0,0,null,0]
[null,null,null,null,null,null,null,0,null,0,0,0,0,0,null,0]
[null,null,null,null,null,null,null,0,null,0,0,0,0,0,null,0]
[null,null,null,null,null,null,null,0,null,0,0,0,0,0,null,0]
[null,null,null,null,null,null,null,0,null,0,0,0,0,0,null,0]
[null,null,null,null,null,null,null,0,null,0,0,0,0,0,null,0]
[null,null,null,null,null,null,null,0,null,0,0,0,0,0,null,0]
[null,null,null,null,null,null,null,0,null,0,0,0,0,0,null,0]
[null,null,null,null,null,null,null,0,null,0,0,0,0,0,null,0]
[null,null,null,null,null,null,null,0,null,0,0,0,0,0,null,0]
[null,null,null,null,null,null,null,0,null,0,0,0,0,0,null,0]
[null,null,null,null,null,null,null,0,null,0,0,0,0,0,null,0]
[null,null,null,null,null,null,null,0,null,0,0,0,0,0,null,0]
[null,null,null,null,null,null,null,0,null,0,0,0,0,0,null,0]
[null,null,null,null,null,null,null,0,null,0,0,0,0,0,null,0]
[null,null,null,null,null,null,null,0,null,0,0,0,0,0,null,0]
[null,null,null,null,null,null,null,0,null,0,0,0,0,0,null,0]
[null,null,null,null,null,null,null,0,null,0,0,0,0,0,null,0]
[null,null,null,null,null,null,null,0,null,0,0,0,0,0,null,0]
[null,null,null,null,null,null,null,0,null,0,0,0,0,0,null,0]
[null,null,null,null,null,null,null,0,null,0,0,0,0,0,null,0]
[null,null,null,null,null,null,null,0,null,0,0,0,0,0,null,0]
[null,null,null,null,null,null,null,0,null,0,0,0,0,0,null,0]
[null,null,null,null,null,null,null,0,null,0,0,0,0,0,null,0]
[null,null,null,null,null,null,null,0,null,0,0,0,0,0,null,0]
[null,null,null,null,null,null,null,0,null,0,0,0,0,0,null,0]
[null,null,null,null,null,null,null,0,null,0,0,0,0,0,null,0]
[null,null,null,null,null,null,null,0,null,0,0,0,0,0,null,0]
[null,null,null,null,null,null,null,0,null,0,0,0,0,0,null,0]
[null,null,null,null,null,null,null,0,null,0,0,0,0,0,null,0]
[null,null,null,null,null,null,null,0,null,0,0,0,0,0,null,0]
[null,null,null,null,null,null,null,0,null,0,0,0,0,0,null,0]
[null,null,null,null,null,null,null,0,null,0,0,0,0,0,null,0]
[null,null,null,null,null,null,null,0,null,0,0,0,0,0,null,0]
[null,null,null,null,null,null,null,0,null,0,0,0,0,0,null,0]
[null,null,null,null,null,null,null,0,null,0,0,0,0,0,null,0]
[null,null,null,null,null,null,null,0,null,0,0,0,0,0,null,0]
[null,null,null,null,null,null,null,0,null,0,0,0,0,0,null,0]
[null,null,null,null,null,null,null,0,null,0,0,0,0,0,null,0]
[null,null,null,null,null,null,null,0,null,0,0,0,0,0,null,0]
[null,null,null,null,null,null,null,0,null,0,0,0,0,0,null,0]
[null,null,null,null,null,null,null,0,null,0,0,0,0,0,null,0]
[null,null,null,null,null,null,null,0,null,0,0,0,0,0,null,0]
[null,null,null,null,null,null,null,0,null,0,0,0,0,0,null,0]
[null,null,null,null,null,null,null,0,null,0,0,0,0,0,null,0]
[null,null,null,null,null,null,null,0,null,0,0,0,0,0,null,0]
[null,null,null,null,null,null,null,0,null,0,0,0,0,0,null,0]
[null,null,null,null,null,null,null,0,null,0,0,0,0,0,null,0]
[null,null,null,null,null,null,null,0,null,{"$f":"IF(I144<>\"\",M143,0)","v":0},{"$f":"I144*J144","v":0},0,{"$f":"IF(AND(F144=0,I144=0),0,IF(F144<>\"\",(N143+H144)/L144,M143))","v":0},{"$f":"L144*M144","v":0},null,{"$f":"IF(AND(L144<>0,L145=0),ROW(L144),0)","v":0}]
[null,null,null,null,null,null,null,0,null,0,0,0,0,0,null,0]
[null,null,null,null,null,null,null,0,null,0,0,0,0,0,null,0]
[null,null,null,null,null,null,null,{"$f":"F147*G147","v":0},null,0,0,{"$f":"IF(AND(F147<>0,I147=0),L146+F147,IF(AND(I147<>0,F147=0),L146-I147,0))","v":0},0,0,null,0]
[null,null,null,null,null,null,null,0,null,0,0,0,0,0,null,0]
[null,null,null,null,null,null,null,0,null,0,0,0,0,0,null,0]
[null,null,null,null,null,null,null,0,null,0,0,0,0,0,null,0]
[null,null,null,null,null,null,null,0,null,0,0,0,0,0,null,0]
[null,null,null,null,null,null,null,0,null,0,0,0,0,0,null,0]
[null,null,null,null,null,null,null,0,null,0,0,0,0,0,null,0]
[null,null,null,null,null,null,null,0,null,0,0,0,0,0,null,0]
[null,null,null,null,null,null,null,0,null,0,0,0,0,0,null,0]
[null,null,null,null,null,null,null,0,null,0,0,0,0,0,null,0]
[null,null,null,null,null,null,null,0,null,0,0,0,0,0,null,0]
[null,null,null,null,null,null,null,0,null,0,0,0,0,0,null,0]
[null,null,null,null,null,null,null,0,null,0,0,0,0,0,null,0]
[null,null,null,null,null,null,null,0,null,0,0,0,0,0,null,0]
[null,null,null,null,null,null,null,0,null,0,0,0,0,0,null,0]
[null,null,null,null,null,null,null,0,null,0,0,0,0,0,null,0]
[null,null,null,null,null,null,null,0,null,0,0,0,0,0,null,0]
[null,null,null,null,null,null,null,0,null,0,0,0,0,0,null,0]
[null,null,null,null,null,null,null,0,null,0,0,0,0,0,null,0]
[null,null,null,null,null,null,null,0,null,0,0,0,0,0,null,0]
[null,null,null,null,null,null,null,0,null,0,0,0,0,0,null,0]
[null,null,null,null,null,null,null,0,null,0,0,0,0,0,null,0]
[null,null,null,null,null,null,null,0,null,0,0,0,0,0,null,0]
[null,null,null,null,null,null,null,0,null,0,0,0,0,0,null,0]
[null,null,null,null,null,null,null,0,null,0,0,0,0,0,null,0]
[null,null,null,null,null,null,null,0,null,0,0,0,0,0,null,0]
[null,null,null,null,null,null,null,0,null,0,0,0,0,0,null,0]
[null,null,null,null,null,null,null,0,null,0,0,0,0,0,null,0]
[null,null,null,null,null,null,null,0,null,0,0,0,0,0,null,0]
[null,null,null,null,null,null,null,0,null,0,0,0,0,0,null,0]
[null,null,null,null,null,null,null,0,null,0,0,0,0,0,null,0]
[null,null,null,null,null,null,null,0,null,0,0,0,0,0,null,0]
[null,null,null,null,null,null,null,0,null,0,0,0,0,0,null,0]
[null,null,null,null,null,null,null,0,null,0,0,0,0,0,null,0]
[null,null,null,null,null,null,null,0,null,0,0,0,0,0,null,0]
[null,null,null,null,null,null,null,0,null,0,0,0,0,0,null,0]
[null,null,null,null,null,null,null,0,null,0,0,0,0,0,null,0]
[null,null,null,null,null,null,null,0,null,0,0,0,0,0,null,0]
[null,null,null,null,null,null,null,0,null,0,0,0,0,0,null,0]
[null,null,null,null,null,null,null,0,null,0,0,0,0,0,null,0]
[null,null,null,null,null,null,null,0,null,0,0,0,0,0,null,0]
[null,null,null,null,null,null,null,0,null,0,0,0,0,0,null,0]
[null,null,null,null,null,null,null,0,null,0,0,0,0,0,null,0]
[null,null,null,null,null,null,null,0,null,0,0,0,0,0,null,0]
[null,null,null,null,null,null,null,0,null,0,0,0,0,0,null,0]
[null,null,null,null,null,null,null,0,null,0,0,0,0,0,null,0]
[null,null,null,null,null,null,null,0,null,0,0,0,0,0,null,0]
[null,null,null,null,null,null,null,0,null,0,0,0,0,0,null,0]
[null,null,null,null,null,null,null,0,null,0,0,0,0,0,null,0]
[null,null,null,null,null,null,null,0,null,0,0,0,0,0,null,0]
[null,null,null,null,null,null,null,0,null,0,0,0,0,0,null,0]
[null,null,null,null,null,null,null,0,null,0,0,0,0,0,null,0]
[null,null,null,null,null,null,null,0,null,0,0,0,0,0,null,0]
[null,null,null,null,null,null,null,0,null,0,0,0,0,0,null,0]
[null,null,null,null,null,null,null,0,null,0,0,0,0,0,null,0]
[null,null,null,null,null,null,null,0,null,0,0,0,0,0,null,0]
[null,null,null,null,null,null,null,0,null,0,0,0,0,0,null,0]
[null,null,null,null,null,null,null,0,null,0,0,0,0,0,null,0]
[null,null,null,null,null,null,null,0,null,0,0,0,0,0,null,0]
[null,null,null,null,null,null,null,0,null,0,0,0,0,0,null,0]
[null,null,null,null,null,null,null,0,null,0,0,0,0,0,null,0]
[null,null,null,null,null,null,null,0,null,{"$f":"IF(I208<>\"\",M207,0)","v":0},{"$f":"I208*J208","v":0},0,{"$f":"IF(AND(F208=0,I208=0),0,IF(F208<>\"\",(N207+H208)/L208,M207))","v":0},{"$f":"L208*M208","v":0},null,{"$f":"IF(AND(L208<>0,L209=0),ROW(L208),0)","v":0}]
[null,null,null,null,null,null,null,0,null,0,0,0,0,0,null,0]
[null,null,null,null,null,null,null,0,null,0,0,0,0,0,null,0]
[null,null,null,null,null,null,null,{"$f":"F211*G211","v":0},null,0,0,{"$f":"IF(AND(F211<>0,I211=0),L210+F211,IF(AND(I211<>0,F211=0),L210-I211,0))","v":0},0,0,null,0]
[null,null,null,null,null,null,null,0,null,0,0,0,0,0,null,0]
[null,null,null,null,null,null,null,0,null,0,0,0,0,0,null,0]
[null,null,null,null,null,null,null,0,null,0,0,0,0,0,null,0]
[null,null,null,null,null,null,null,0,null,0,0,0,0,0,null,0]
[null,null,null,null,null,null,null,0,null,0,0,0,0,0,null,0]
[null,null,null,null,null,null,null,0,null,0,0,0,0,0,null,0]
[null,null,null,null,null,null,null,0,null,0,0,0,0,0,null,0]
[null,null,null,null,null,null,null,0,null,0,0,0,0,0,null,0]
[null,null,null,null,null,null,null,0,null,0,0,0,0,0,null,0]
[null,null,null,null,null,null,null,0,null,0,0,0,0,0,null,0]
[null,null,null,null,null,null,null,0,null,0,0,0,0,0,null,0]
[null,null,null,null,null,null,null,0,null,0,0,0,0,0,null,0]
[null,null,null,null,null,null,null,0,null,0,0,0,0,0,null,0]
[null,null,null,null,null,null,null,0,null,0,0,0,0,0,null,0]
[null,null,null,null,null,null,null,0,null,0,0,0,0,0,null,0]
[null,null,null,null,null,null,null,0,null,0,0,0,0,0,null,0]
[null,null,null,null,null,null,null,0,null,0,0,0,0,0,null,0]
[null,null,null,null,null,null,null,0,null,0,0,0,0,0,null,0]
[null,null,null,null,null,null,null,0,null,0,0,0,0,0,null,0]
[null,null,null,null,null,null,null,0,null,0,0,0,0,0,null,0]
[null,null,null,null,null,null,null,0,null,0,0,0,0,0,null,0]
[null,null,null,null,null,null,null,0,null,0,0,0,0,0,null,0]
[null,null,null,null,null,null,null,0,null,0,0,0,0,0,null,0]
[null,null,null,null,null,null,null,0,null,0,0,0,0,0,null,0]
[null,null,null,null,null,null,null,0,null,0,0,0,0,0,null,0]
[null,null,null,null,null,null,null,0,null,0,0,0,0,0,null,0]
[null,null,null,null,null,null,null,0,null,0,0,0,0,0,null,0]
[null,null,null,null,null,null,null,0,null,0,0,0,0,0,null,0]
[null,null,null,null,null,null,null,0,null,0,0,0,0,0,null,0]
[null,null,null,null,null,null,null,0,null,0,0,0,0,0,null,0]
[null,null,null,null,null,null,null,0,null,0,0,0,0,0,null,0]
[null,null,null,null,null,null,null,0,null,0,0,0,0,0,null,0]
[null,null,null,null,null,null,null,0,null,0,0,0,0,0,null,0]
[null,null,null,null,null,null,null,0,null,0,0,0,0,0,null,0]
[null,null,null,null,null,null,null,0,null,0,0,0,0,0,null,0]
[null,null,null,null,null,null,null,0,null,0,0,0,0,0,null,0]
[null,null,null,null,null,null,null,0,null,0,0,0,0,0,null,0]
[null,null,null,null,null,null,null,0,null,0,0,0,0,0,null,0]
[null,null,null,null,null,null,null,0,null,0,0,0,0,0,null,0]
[null,null,null,null,null,null,null,0,null,0,0,0,0,0,null,0]
[null,null,null,null,null,null,null,0,null,0,0,0,0,0,null,0]
[null,null,null,null,null,null,null,0,null,0,0,0,0,0,null,0]
[null,null,null,null,null,null,null,0,null,0,0,0,0,0,null,0]
[null,null,null,null,null,null,null,0,null,0,0,0,0,0,null,0]
[null,null,null,null,null,null,null,0,null,0,0,0,0,0,null,0]
[null,null,null,null,null,null,null,0,null,0,0,0,0,0,null,0]
[null,null,null,null,null,null,null,0,null,0,0,0,0,0,null,0]
[null,null,null,null,null,null,null,0,null,0,0,0,0,0,null,0]
[null,null,null,null,null,null,null,0,null,0,0,0,0,0,null,0]
[null,null,null,null,null,null,null,0,null,0,0,0,0,0,null,0]
[null,null,null,null,null,null,null,0,null,0,0,0,0,0,null,0]
[null,null,null,null,null,null,null,0,null,0,0,0,0,0,null,0]
[null,null,null,null,null,null,null,0,null,0,0,0,0,0,null,0]
[null,null,null,null,null,null,null,0,null,0,0,0,0,0,null,0]
[null,null,null,null,null,null,null,0,null,0,0,0,0,0,null,0]
[null,null,null,null,null,null,null,0,null,0,0,0,0,0,null,0]
[null,null,null,null,null,null,null,0,null,0,0,0,0,0,null,0]
[null,null,null,null,null,null,null,0,null,0,0,0,0,0,null,0]
[null,null,null,null,null,null,null,0,null,0,0,0,0,0,null,0]
[null,null,null,null,null,null,null,0,null,0,0,0,0,0,null,0]
[null,null,null,null,null,null,null,0,null,{"$f":"IF(I272<>\"\",M271,0)","v":0},{"$f":"I272*J272","v":0},0,{"$f":"IF(AND(F272=0,I272=0),0,IF(F272<>\"\",(N271+H272)/L272,M271))","v":0},{"$f":"L272*M272","v":0},null,{"$f":"IF(AND(L272<>0,L273=0),ROW(L272),0)","v":0}]
[null,null,null,null,null,null,null,0,null,0,0,0,0,0,null,0]
[null,null,null,null,null,null,null,0,null,0,0,0,0,0,null,0]
[null,null,null,null,null,null,null,{"$f":"F275*G275","v":0},null,0,0,{"$f":"IF(AND(F275<>0,I275=0),L274+F275,IF(AND(I275<>0,F275=0),L274-I275,0))","v":0},0,0,null,0]
[null,null,null,null,null,null,null,0,null,0,0,0,0,0,null,0]
[null,null,null,null,null,null,null,0,null,0,0,0,0,0,null,0]
[null,null,null,null,null,null,null,0,null,0,0,0,0,0,null,0]
[null,null,null,null,null,null,null,0,null,0,0,0,0,0,null,0]
[null,null,null,null,null,null,null,0,null,0,0,0,0,0,null,0]
[null,null,null,null,null,null,null,0,null,0,0,0,0,0,null,0]
[null,null,null,null,null,null,null,0,null,0,0,0,0,0,null,0]
[null,null,null,null,null,null,null,0,null,0,0,0,0,0,null,0]
[null,null,null,null,null,null,null,0,null,0,0,0,0,0,null,0]
[null,null,null,null,null,null,null,0,null,0,0,0,0,0,null,0]
[null,null,null,null,null,null,null,0,null,0,0,0,0,0,null,0]
[null,null,null,null,null,null,null,0,null,0,0,0,0,0,null,0]
[null,null,null,null,null,null,null,0,null,0,0,0,0,0,null,0]
[null,null,null,null,null,null,null,0,null,0,0,0,0,0,null,0]
[null,null,null,null,null,null,null,0,null,0,0,0,0,0,null,0]
[null,null,null,null,null,null,null,0,null,0,0,0,0,0,null,0]
[null,null,null,null,null,null,null,0,null,0,0,0,0,0,null,0]
[null,null,null,null,null,null,null,0,null,0,0,0,0,0,null,0]
[null,null,null,null,null,null,null,0,null,0,0,0,0,0,null,0]
[null,null,null,null,null,null,null,0,null,0,0,0,0,0,null,0]
[null,null,null,null,null,null,null,0,null,0,0,0,0,0,null,0]
[null,null,null,null,null,null,null,0,null,0,0,0,0,0,null,0]
[null,null,null,null,null,null,null,0,null,0,0,0,0,0,null,0]
[null,null,null,null,null,null,null,0,null,0,0,0,0,0,null,0]
[null,null,null,null,null,null,null,0,null,0,0,0,0,0,null,0]
[null,null,null,null,null,null,null,0,null,0,0,0,0,0,null,0]
[null,null,null,null,null,null,null,0,null,0,0,0,0,0,null,0]
[null,null,null,null,null,null,null,0,null,0,0,0,0,0,null,0]
[null,null,null,null,null,null,null,0,null,0,0,0,0,0,null,0]
[null,null,null,null,null,null,null,0,null,0,0,0,0,0,null,0]
[null,null,null,null,null,null,null,0,null,0,0,0,0,0,null,0]
[null,null,null,null,null,null,null,0,null,0,0,0,0,0,null,0]
[null,null,null,null,null,null,null,0,null,0,0,0,0,0,null,0]
[null,null,null,null,null,null,null,0,null,0,0,0,0,0,null,0]
[null,null,null,null,null,null,null,0,null,0,0,0,0,0,null,0]
[null,null,null,null,null,null,null,0,null,0,0,0,0,0,null,0]
[null,null,null,null,null,null,null,0,null,0,0,0,0,0,null,0]
[null,null,null,null,null,null,null,0,null,0,0,0,0,0,null,0]
[null,null,null,null,null,null,null,0,null,0,0,0,0,0,null,0]
[null,null,null,null,null,null,null,0,null,0,0,0,0,0,null,0]
[null,null,null,null,null,null,null,0,null,0,0,0,0,0,null,0]
[null,null,null,null,null,null,null,0,null,0,0,0,0,0,null,0]
[null,null,null,null,null,null,null,0,null,0,0,0,0,0,null,0]
[null,null,null,null,null,null,null,0,null,0,0,0,0,0,null,0]
[null,null,null,null,null,null,null,0,null,0,0,0,0,0,null,0]
[null,null,null,null,null,null,null,0,null,0,0,0,0,0,null,0]
[null,null,null,null,null,null,null,0,null,0,0,0,0,0,null,0]
[null,null,null,null,null,null,null,0,null,0,0,0,0,0,null,0]
[null,null,null,null,null,null,null,0,null,0,0,0,0,0,null,0]
[null,null,null,null,null,null,null,0,null,0,0,0,0,0,null,0]
[null,null,null,null,null,null,null,0,null,0,0,0,0,0,null,0]
[null,null,null,null,null,null,null,0,null,0,0,0,0,0,null,0]
[null,null,null,null,null,null,null,0,null,0,0,0,0,0,null,0]
[null,null,null,null,null,null,null,0,null,0,0,0,0,0,null,0]
[null,null,null,null,null,null,null,0,null,0,0,0,0,0,null,0]
[null,null,null,null,null,null,null,0,null,0,0,0,0,0,null,0]
[null,null,null,null,null,null,null,0,null,0,0,0,0,0,null,0]
[null,null,null,null,null,null,null,0,null,0,0,0,0,0,null,0]
[null,null,null,null,null,null,null,0,null,0,0,0,0,0,null,0]
[null,null,null,null,null,null,null,0,null,0,0,0,0,0,null,0]
[null,null,null,null,null,null,null,0,null,{"$f":"IF(I336<>\"\",M335,0)","v":0},{"$f":"I336*J336","v":0},0,{"$f":"IF(AND(F336=0,I336=0),0,IF(F336<>\"\",(N335+H336)/L336,M335))","v":0},{"$f":"L336*M336","v":0},null,{"$f":"IF(AND(L336<>0,L337=0),ROW(L336),0)","v":0}]
[null,null,null,null,null,null,null,0,null,0,0,0,0,0,null,0]
[null,null,null,null,null,null,null,0,null,0,0,0,0,0,null,0]
[null,null,null,null,null,null,null,{"$f":"F339*G339","v":0},null,0,0,{"$f":"IF(AND(F339<>0,I339=0),L338+F339,IF(AND(I339<>0,F339=0),L338-I339,0))","v":0},0,0,null,0]
[null,null,null,null,null,null,null,0,null,0,0,0,0,0,null,0]
[null,null,null,null,null,null,null,0,null,0,0,0,0,0,null,0]
[null,null,null,null,null,null,null,0,null,0,0,0,0,0,null,0]
[null,null,null,null,null,null,null,0,null,0,0,0,0,0,null,0]
[null,null,null,null,null,null,null,0,null,0,0,0,0,0,null,0]
[null,null,null,null,null,null,null,0,null,0,0,0,0,0,null,0]
[null,null,null,null,null,null,null,0,null,0,0,0,0,0,null,0]
[null,null,null,null,null,null,null,0,null,0,0,0,0,0,null,0]
[null,null,null,null,null,null,null,0,null,0,0,0,0,0,null,0]
[null,null,null,null,null,null,null,0,null,0,0,0,0,0,null,0]
[null,null,null,null,null,null,null,0,null,0,0,0,0,0,null,0]
[null,null,null,null,null,null,null,0,null,0,0,0,0,0,null,0]
[null,null,null,null,null,null,null,0,null,0,0,0,0,0,null,0]
[null,null,null,null,null,null,null,0,null,0,0,0,0,0,null,0]
[null,null,null,null,null,null,null,0,null,0,0,0,0,0,null,0]
[null,null,null,null,null,null,null,0,null,0,0,0,0,0,null,0]
[null,null,null,null,null,null,null,0,null,0,0,0,0,0,null,0]
[null,null,null,null,null,null,null,0,null,0,0,0,0,0,null,0]
[null,null,null,null,null,null,null,0,null,0,0,0,0,0,null,0]
[null,null,null,null,null,null,null,0,null,0,0,0,0,0,null,0]
[null,null,null,null,null,null,null,0,null,0,0,0,0,0,null,0]
[null,null,null,null,null,null,null,0,null,0,0,0,0,0,null,0]
[null,null,null,null,null,null,null,0,null,0,0,0,0,0,null,0]
[null,null,null,null,null,null,null,0,null,0,0,0,0,0,null,0]
[null,null,null,null,null,null,null,0,null,0,0,0,0,0,null,0]
[null,null,null,null,null,null,null,0,null,0,0,0,0,0,null,0]
[null,null,null,null,null,null,null,0,null,0,0,0,0,0,null,0]
[null,null,null,null,null,null,null,0,null,0,0,0,0,0,null,0]
[null,null,null,null,null,null,null,0,null,0,0,0,0,0,null,0]
[null,null,null,null,null,null,null,0,null,0,0,0,0,0,null,0]
[null,null,null,null,null,null,null,0,null,0,0,0,0,0,null,0]
[null,null,null,null,null,null,null,0,null,0,0,0,0,0,null,0]
[null,null,null,null,null,null,null,0,null,0,0,0,0,0,null,0]
[null,null,null,null,null,null,null,0,null,0,0,0,0,0,null,0]
[null,null,null,null,null,null,null,0,null,0,0,0,0,0,null,0]
[null,null,null,null,null,null,null,0,null,0,0,0,0,0,null,0]
[null,null,null,null,null,null,null,0,null,0,0,0,0,0,null,0]
[null,null,null,null,null,null,null,0,null,0,0,0,0,0,null,0]
[null,null,null,null,null,null,null,0,null,0,0,0,0,0,null,0]
[null,null,null,null,null,null,null,0,null,0,0,0,0,0,null,0]
[null,null,null,null,null,null,null,0,null,0,0,0,0,0,null,0]
[null,null,null,null,null,null,null,0,null,0,0,0,0,0,null,0]
[null,null,null,null,null,null,null,0,null,0,0,0,0,0,null,0]
[null,null,null,null,null,null,null,0,null,0,0,0,0,0,null,0]
[null,null,null,null,null,null,null,0,null,0,0,0,0,0,null,0]
[null,null,null,null,null,null,null,0,null,0,0,0,0,0,null,0]
[null,null,null,null,null,null,null,0,null,0,0,0,0,0,null,0]
[null,null,null,null,null,null,null,0,null,0,0,0,0,0,null,0]
[null,null,null,null,null,null,null,0,null,0,0,0,0,0,null,0]
[null,null,null,null,null,null,null,0,null,0,0,0,0,0,null,0]
[null,null,null,null,null,null,null,0,null,0,0,0,0,0,null,0]
[null,null,null,null,null,null,null,0,null,0,0,0,0,0,null,0]
[null,null,null,null,null,null,null,0,null,0,0,0,0,0,null,0]
[null,null,null,null,null,null,null,0,null,0,0,0,0,0,null,0]
[null,null,null,null,null,null,null,0,null,0,0,0,0,0,null,0]
[null,null,null,null,null,null,null,0,null,0,0,0,0,0,null,0]
[null,null,null,null,null,null,null,0,null,0,0,0,0,0,null,0]
[null,null,null,null,null,null,null,0,null,0,0,0,0,0,null,0]
[null,null,null,null,null,null,null,0,null,0,0,0,0,0,null,0]
[null,null,null,null,null,null,null,0,null,0,0,0,0,0,null,0]
[null,null,null,null,null,null,null,0,null,{"$f":"IF(I400<>\"\",M399,0)","v":0},{"$f":"I400*J400","v":0},0,{"$f":"IF(AND(F400=0,I400=0),0,IF(F400<>\"\",(N399+H400)/L400,M399))","v":0},{"$f":"L400*M400","v":0},null,{"$f":"IF(AND(L400<>0,L401=0),ROW(L400),0)","v":0}]
[null,null,null,null,null,null,null,0,null,0,0,0,0,0,null,0]
[null,null,null,null,null,null,null,0,null,0,0,0,0,0,null,0]
[null,null,null,null,null,null,null,{"$f":"F403*G403","v":0},null,0,0,{"$f":"IF(AND(F403<>0,I403=0),L402+F403,IF(AND(I403<>0,F403=0),L402-I403,0))","v":0},0,0,null,0]
[null,null,null,null,null,null,null,0,null,0,0,0,0,0,null,0]
[null,null,null,null,null,null,null,0,null,0,0,0,0,0,null,0]
[null,null,null,null,null,null,null,0,null,0,0,0,0,0,null,0]
[null,null,null,null,null,null,null,0,null,0,0,0,0,0,null,0]
[null,null,null,null,null,null,null,0,null,0,0,0,0,0,null,0]
[null,null,null,null,null,null,null,0,null,0,0,0,0,0,null,0]
[null,null,null,null,null,null,null,0,null,0,0,0,0,0,null,0]
[null,null,null,null,null,null,null,0,null,0,0,0,0,0,null,0]
[null,null,null,null,null,null,null,0,null,0,0,0,0,0,null,0]
[null,null,null,null,null,null,null,0,null,0,0,0,0,0,null,0]
[null,null,null,null,null,null,null,0,null,0,0,0,0,0,null,0]
[null,null,null,null,null,null,null,0,null,0,0,0,0,0,null,0]
[null,null,null,null,null,null,null,0,null,0,0,0,0,0,null,0]
[null,null,null,null,null,null,null,0,null,0,0,0,0,0,null,0]
[null,null,null,null,null,null,null,0,null,0,0,0,0,0,null,0]
[null,null,null,null,null,null,null,0,null,0,0,0,0,0,null,0]
[null,null,null,null,null,null,null,0,null,0,0,0,0,0,null,0]
[null,null,null,null,null,null,null,0,null,0,0,0,0,0,null,0]
[null,null,null,null,null,null,null,0,null,0,0,0,0,0,null,0]
[null,null,null,null,null,null,null,0,null,0,0,0,0,0,null,0]
[null,null,null,null,null,null,null,0,null,0,0,0,0,0,null,0]
[null,null,null,null,null,null,null,0,null,0,0,0,0,0,null,0]
[null,null,null,null,null,null,null,0,null,0,0,0,0,0,null,0]
[null,null,null,null,null,null,null,0,null,0,0,0,0,0,null,0]
[null,null,null,null,null,null,null,0,null,0,0,0,0,0,null,0]
[null,null,null,null,null,null,null,0,null,0,0,0,0,0,null,0]
[null,null,null,null,null,null,null,0,null,0,0,0,0,0,null,0]
[null,null,null,null,null,null,null,0,null,0,0,0,0,0,null,0]
[null,null,null,null,null,null,null,0,null,0,0,0,0,0,null,0]
[null,null,null,null,null,null,null,0,null,0,0,0,0,0,null,0]
[null,null,null,null,null,null,null,0,null,0,0,0,0,0,null,0]
[null,null,null,null,null,null,null,0,null,0,0,0,0,0,null,0]
[null,null,null,null,null,null,null,0,null,0,0,0,0,0,null,0]
[null,null,null,null,null,null,null,0,null,0,0,0,0,0,null,0]
[null,null,null,null,null,null,null,0,null,0,0,0,0,0,null,0]
[null,null,null,null,null,null,null,0,null,0,0,0,0,0,null,0]
[null,null,null,null,null,null,null,0,null,0,0,0,0,0,null,0]
[null,null,null,null,null,null,null,0,null,0,0,0,0,0,null,0]
[null,null,null,null,null,null,null,0,null,0,0,0,0,0,null,0]
[null,null,null,null,null,null,null,0,null,0,0,0,0,0,null,0]
[null,null,null,null,null,null,null,0,null,0,0,0,0,0,null,0]
[null,null,null,null,null,null,null,0,null,0,0,0,0,0,null,0]
[null,null,null,null,null,null,null,0,null,0,0,0,0,0,null,0]
[null,null,null,null,null,null,null,0,null,0,0,0,0,0,null,0]
[null,null,null,null,null,null,null,0,null,0,0,0,0,0,null,0]
[null,null,null,null,null,null,null,0,null,0,0,0,0,0,null,0]
[null,null,null,null,null,null,null,0,null,0,0,0,0,0,null,0]
[null,null,null,null,null,null,null,0,null,0,0,0,0,0,null,0]
[null,null,null,null,null,null,null,0,null,0,0,0,0,0,null,0]
[null,null,null,null,null,null,null,0,null,0,0,0,0,0,null,0]
[null,null,null,null,null,null,null,0,null,0,0,0,0,0,null,0]
[null,null,null,null,null,null,null,0,null,0,0,0,0,0,null,0]
[null,null,null,null,null,null,null,0,null,0,0,0,0,0,null,0]
[null,null,null,null,null,null,null,0,null,0,0,0,0,0,null,0]
[null,null,null,null,null,null,null,0,null,0,0,0,0,0,null,0]
[null,null,null,null,null,null,null,0,null,0,0,0,0,0,null,0]
[null,null,null,null,null,null,null,0,null,0,0,0,0,0,null,0]
[null,null,null,null,null,null,null,0,null,0,0,0,0,0,null,0]
[null,null,null,null,null,null,null,0,null,0,0,0,0,0,null,0]
[null,null,null,null,null,null,null,0,null,0,0,0,0,0,null,0]
[null,null,null,null,null,null,null,0,null,{"$f":"IF(I464<>\"\",M463,0)","v":0},{"$f":"I464*J464","v":0},0,{"$f":"IF(AND(F464=0,I464=0),0,IF(F464<>\"\",(N463+H464)/L464,M463))","v":0},{"$f":"L464*M464","v":0},null,{"$f":"IF(AND(L464<>0,L465=0),ROW(L464),0)","v":0}]
[null,null,null,null,null,null,null,0,null,0,0,0,0,0,null,0]
[null,null,null,null,null,null,null,0,null,0,0,0,0,0,null,0]
[null,null,null,null,null,null,null,{"$f":"F467*G467","v":0},null,0,0,{"$f":"IF(AND(F467<>0,I467=0),L466+F467,IF(AND(I467<>0,F467=0),L466-I467,0))","v":0},0,0,null,0]
[null,null,null,null,null,null,null,0,null,0,0,0,0,0,null,0]
[null,null,null,null,null,null,null,0,null,0,0,0,0,0,null,0]
[null,null,null,null,null,null,null,0,null,0,0,0,0,0,null,0]
[null,null,null,null,null,null,null,0,null,0,0,0,0,0,null,0]
[null,null,null,null,null,null,null,0,null,0,0,0,0,0,null,0]
[null,null,null,null,null,null,null,0,null,0,0,0,0,0,null,0]
[null,null,null,null,null,null,null,0,null,0,0,0,0,0,null,0]
[null,null,null,null,null,null,null,0,null,0,0,0,0,0,null,0]
[null,null,null,null,null,null,null,0,null,0,0,0,0,0,null,0]
[null,null,null,null,null,null,null,0,null,0,0,0,0,0,null,0]
[null,null,null,null,null,null,null,0,null,0,0,0,0,0,null,0]
[null,null,null,null,null,null,null,0,null,0,0,0,0,0,null,0]
[null,null,null,null,null,null,null,0,null,0,0,0,0,0,null,0]
[null,null,null,null,null,null,null,0,null,0,0,0,0,0,null,0]
[null,null,null,null,null,null,null,0,null,0,0,0,0,0,null,0]
[null,null,null,null,null,null,null,0,null,0,0,0,0,0,null,0]
[null,null,null,null,null,null,null,0,null,0,0,0,0,0,null,0]
[null,null,null,null,null,null,null,0,null,0,0,0,0,0,null,0]
[null,null,null,null,null,null,null,0,null,0,0,0,0,0,null,0]
[null,null,null,null,null,null,null,0,null,0,0,0,0,0,null,0]
[null,null,null,null,null,null,null,0,null,0,0,0,0,0,null,0]
[null,null,null,null,null,null,null,0,null,0,0,0,0,0,null,0]
[null,null,null,null,null,null,null,0,null,0,0,0,0,0,null,0]
[null,null,null,null,null,null,null,0,null,0,0,0,0,0,null,0]
[null,null,null,null,null,null,null,0,null,0,0,0,0,0,null,0]
[null,null,null,null,null,null,null,0,null,0,0,0,0,0,null,0]
[null,null,null,null,null,null,null,0,null,0,0,0,0,0,null,0]
[null,null,null,null,null,null,null,0,null,0,0,0,0,0,null,0]
[null,null,null,null,null,null,null,{"$f":"F496*G496","v":0},null,{"$f":"IF(I496<>\"\",M495,0)","v":0},{"$f":"I496*J496","v":0},{"$f":"IF(AND(F496<>0,I496=0),L495+F496,IF(AND(I496<>0,F496=0),L495-I496,0))","v":0},{"$f":"IF(AND(F496=0,I496=0),0,IF(F496<>\"\",(N495+H496)/L496,M495))","v":0},{"$f":"L496*M496","v":0},null,0]
[null,null,null,null,null,null,null,0,null,0,0,0,0,0,null,0]
[null,null,null,null,null,null,null,0,null,0,0,0,0,0,null,0]
[null,null,null,null,null,null,null,0,null,0,0,0,0,0,null,0]
[null,null,null,null,null,null,null,0,null,0,0,0,0,0,null,0]
[null,null,null,null,null,null,null,0,null,0,0,0,0,0,null,0]
[null,null,null,null,null,null,null,0,null,0,0,0,0,0,null,0]
[null,null,null,null,null,null,null,0,null,0,0,0,0,0,null,0]
[null,null,null,null,null,null,null,0,null,0,0,0,0,0,null,0]
[null,null,null,null,null,null,null,0,null,0,0,0,0,0,null,0]
[null,null,null,null,null,null,null,0,null,0,0,0,0,0,null,0]
[null,null,null,null,null,null,null,0,null,0,0,0,0,0,null,0]
[null,null,null,null,null,null,null,0,null,0,0,0,0,0,null,0]
[null,null,null,null,null,null,null,0,null,0,0,0,0,0,null,0]
[null,null,null,null,null,null,null,0,null,0,0,0,0,0,null,0]
[null,null,null,null,null,null,null,0,null,0,0,0,0,0,null,0]
[null,null,null,null,null,null,null,0,null,0,0,0,0,0,null,0]
[null,null,null,null,null,null,null,0,null,0,0,0,0,0,null,0]
[null,null,null,null,null,null,null,0,null,0,0,0,0,0,null,0]
[null,null,null,null,null,null,null,0,null,0,0,0,0,0,null,0]
[null,null,null,null,null,null,null,0,null,0,0,0,0,0,null,0]
[null,null,null,null,null,null,null,0,null,0,0,0,0,0,null,0]
[null,null,null,null,null,null,null,0,null,0,0,0,0,0,null,0]
[null,null,null,null,null,null,null,0,null,0,0,0,0,0,null,0]
[null,null,null,null,null,null,null,0,null,0,0,0,0,0,null,0]
[null,null,null,null,null,null,null,0,null,0,0,0,0,0,null,0]
[null,null,null,null,null,null,null,0,null,0,0,0,0,0,null,0]
[null,null,null,null,null,null,null,0,null,0,0,0,0,0,null,0]
[null,null,null,null,null,null,null,0,null,0,0,0,0,0,null,0]
[null,null,null,null,null,null,null,0,null,0,0,0,0,0,null,0]
[null,null,null,null,null,null,null,0,null,0,0,0,0,0,null,0]
[null,null,null,null,null,null,null,0,null,0,0,0,0,0,null,0]
[null,null,null,null,null,null,null,0,null,0,0,0,0,0,null,{"$f":"IF(AND(L528<>0,L529=0),ROW(L528),0)","v":0}]
[null,null,null,null,null,null,null,0,null,0,0,0,0,0,null,0]
[null,null,null,null,null,null,null,0,null,0,0,0,0,0,null,0]
[null,null,null,null,null,null,null,0,null,0,0,0,0,0,null,0]
[null,null,null,null,null,null,null,0,null,0,0,0,0,0,null,0]
[null,null,null,null,null,null,null,0,null,0,0,0,0,0,null,0]
[null,null,null,null,null,null,null,0,null,0,0,0,0,0,null,0]
[null,null,null,null,null,null,null,0,null,0,0,0,0,0,null,0]
[null,null,null,null,null,null,null,0,null,0,0,0,0,0,null,0]
[null,null,null,null,null,null,null,0,null,0,0,0,0,0,null,0]
[null,null,null,null,null,null,null,0,null,0,0,0,0,0,null,0]
[null,null,null,null,null,null,null,0,null,0,0,0,0,0,null,0]
[null,null,null,null,null,null,null,0,null,0,0,0,0,0,null,0]
[null,null,null,null,null,null,null,0,null,0,0,0,0,0,null,0]
[null,null,null,null,null,null,null,0,null,0,0,0,0,0,null,0]
[null,null,null,null,null,null,null,0,null,0,0,0,0,0,null,0]
[null,null,null,null,null,null,null,0,null,0,0,0,0,0,null,0]
[null,null,null,null,null,null,null,0,null,0,0,0,0,0,null,0]
[null,null,null,null,null,null,null,0,null,0,0,0,0,0,null,0]
[null,null,null,null,null,null,null,0,null,0,0,0,0,0,null,0]
[null,null,null,null,null,null,null,0,null,0,0,0,0,0,null,0]
[null,null,null,null,null,null,null,0,null,0,0,0,0,0,null,0]
[null,null,null,null,null,null,null,0,null,0,0,0,0,0,null,0]
[null,null,null,null,null,null,null,0,null,0,0,0,0,0,null,0]
[null,null,null,null,null,null,null,0,null,0,0,0,0,0,null,0]
[null,null,null,null,null,null,null,0,null,0,0,0,0,0,null,0]
[null,null,null,null,null,null,null,0,null,0,0,0,0,0,null,0]
[null,null,null,null,null,null,null,0,null,0,0,0,0,0,null,0]
[null,null,null,null,null,null,null,0,null,0,0,0,0,0,null,0]
[null,null,null,null,null,null,null,0,null,0,0,0,0,0,null,0]
[null,null,null,null,null,null,null,0,null,0,0,0,0,0,null,0]
[null,null,null,null,null,null,null,0,null,0,0,0,0,0,null,0]
[null,null,null,null,null,null,null,{"$f":"F560*G560","v":0},null,{"$f":"IF(I560<>\"\",M559,0)","v":0},{"$f":"I560*J560","v":0},{"$f":"IF(AND(F560<>0,I560=0),L559+F560,IF(AND(I560<>0,F560=0),L559-I560,0))","v":0},{"$f":"IF(AND(F560=0,I560=0),0,IF(F560<>\"\",(N559+H560)/L560,M559))","v":0},{"$f":"L560*M560","v":0},null,0]
[null,null,null,null,null,null,null,0,null,0,0,0,0,0,null,0]
[null,null,null,null,null,null,null,0,null,0,0,0,0,0,null,0]
[null,null,null,null,null,null,null,0,null,0,0,0,0,0,null,0]
[null,null,null,null,null,null,null,0,null,0,0,0,0,0,null,0]
[null,null,null,null,null,null,null,0,null,0,0,0,0,0,null,0]
[null,null,null,null,null,null,null,0,null,0,0,0,0,0,null,0]
[null,null,null,null,null,null,null,0,null,0,0,0,0,0,null,0]
[null,null,null,null,null,null,null,0,null,0,0,0,0,0,null,0]
[null,null,null,null,null,null,null,0,null,0,0,0,0,0,null,0]
[null,null,null,null,null,null,null,0,null,0,0,0,0,0,null,0]
[null,null,null,null,null,null,null,0,null,0,0,0,0,0,null,0]
[null,null,null,null,null,null,null,0,null,0,0,0,0,0,null,0]
[null,null,null,null,null,null,null,0,null,0,0,0,0,0,null,0]
[null,null,null,null,null,null,null,0,null,0,0,0,0,0,null,0]
[null,null,null,null,null,null,null,0,null,0,0,0,0,0,null,0]
[null,null,null,null,null,null,null,0,null,0,0,0,0,0,null,0]
[null,null,null,null,null,null,null,0,null,0,0,0,0,0,null,0]
[null,null,null,null,null,null,null,0,null,0,0,0,0,0,null,0]
[null,null,null,null,null,null,null,0,null,0,0,0,0,0,null,0]
[null,null,null,null,null,null,null,0,null,0,0,0,0,0,null,0]
[null,null,null,null,null,null,null,0,null,0,0,0,0,0,null,0]
[null,null,null,null,null,null,null,0,null,0,0,0,0,0,null,0]
[null,null,null,null,null,null,null,0,null,0,0,0,0,0,null,0]
[null,null,null,null,null,null,null,0,null,0,0,0,0,0,null,0]
[null,null,null,null,null,null,null,0,null,0,0,0,0,0,null,0]
[null,null,null,null,null,null,null,0,null,0,0,0,0,0,null,0]
[null,null,null,null,null,null,null,0,null,0,0,0,0,0,null,0]
[null,null,null,null,null,null,null,0,null,0,0,0,0,0,null,0]
[null,null,null,null,null,null,null,0,null,0,0,0,0,0,null,0]
[null,null,null,null,null,null,null,0,null,0,0,0,0,0,null,0]
[null,null,null,null,null,null,null,0,null,0,0,0,0,0,null,0]
[null,null,null,null,null,null,null,0,null,0,0,0,0,0,null,{"$f":"IF(AND(L592<>0,L593=0),ROW(L592),0)","v":0}]
[null,null,null,null,null,null,null,0,null,0,0,0,0,0,null,0]
[null,null,null,null,null,null,null,0,null,0,0,0,0,0,null,0]
[null,null,null,null,null,null,null,0,null,0,0,0,0,0,null,0]
[null,null,null,null,null,null,null,0,null,0,0,0,0,0,null,0]
[null,null,null,null,null,null,null,0,null,0,0,0,0,0,null,0]
[null,null,null,null,null,null,null,0,null,0,0,0,0,0,null,0]
[null,null,null,null,null,null,null,0,null,0,0,0,0,0,null,0]
[null,null,null,null,null,null,null,0,null,0,0,0,0,0,null,0]
[null,null,null,null,null,null,null,0,null,0,0,0,0,0,null,0]
[null,null,null,null,null,null,null,0,null,0,0,0,0,0,null,0]
[null,null,null,null,null,null,null,0,null,0,0,0,0,0,null,0]
[null,null,null,null,null,null,null,0,null,0,0,0,0,0,null,0]
[null,null,null,null,null,null,null,0,null,0,0,0,0,0,null,0]
[null,null,null,null,null,null,null,0,null,0,0,0,0,0,null,0]
[null,null,null,null,null,null,null,0,null,0,0,0,0,0,null,0]
[null,null,null,null,null,null,null,0,null,0,0,0,0,0,null,0]
[null,null,null,null,null,null,null,0,null,0,0,0,0,0,null,0]
[null,null,null,null,null,null,null,0,null,0,0,0,0,0,null,0]
[null,null,null,null,null,null,null,0,null,0,0,0,0,0,null,0]
[null,null,null,null,null,null,null,0,null,0,0,0,0,0,null,0]
[null,null,null,null,null,null,null,0,null,0,0,0,0,0,null,0]
[null,null,null,null,null,null,null,0,null,0,0,0,0,0,null,0]
[null,null,null,null,null,null,null,0,null,0,0,0,0,0,null,0]
[null,null,null,null,null,null,null,0,null,0,0,0,0,0,null,0]
[null,null,null,null,null,null,null,0,null,0,0,0,0,0,null,0]
[null,null,null,null,null,null,null,0,null,0,0,0,0,0,null,0]
[null,null,null,null,null,null,null,0,null,0,0,0,0,0,null,0]
[null,null,null,null,null,null,null,0,null,0,0,0,0,0,null,0]
[null,null,null,null,null,null,null,0,null,0,0,0,0,0,null,0]
[null,null,null,null,null,null,null,0,null,0,0,0,0,0,null,0]
[null,null,null,null,null,null,null,0,null,0,0,0,0,0,null,0]
[null,null,null,null,null,null,null,{"$f":"F624*G624","v":0},null,{"$f":"IF(I624<>\"\",M623,0)","v":0},{"$f":"I624*J624","v":0},{"$f":"IF(AND(F624<>0,I624=0),L623+F624,IF(AND(I624<>0,F624=0),L623-I624,0))","v":0},{"$f":"IF(AND(F624=0,I624=0),0,IF(F624<>\"\",(N623+H624)/L624,M623))","v":0},{"$f":"L624*M624","v":0},null,0]
[null,null,null,null,null,null,null,0,null,0,0,0,0,0,null,0]
[null,null,null,null,null,null,null,0,null,0,0,0,0,0,null,0]
[null,null,null,null,null,null,null,0,null,0,0,0,0,0,null,0]
[null,null,null,null,null,null,null,0,null,0,0,0,0,0,null,0]
[null,null,null,null,null,null,null,0,null,0,0,0,0,0,null,0]
[null,null,null,null,null,null,null,0,null,0,0,0,0,0,null,0]
[null,null,null,null,null,null,null,0,null,0,0,0,0,0,null,0]
[null,null,null,null,null,null,null,0,null,0,0,0,0,0,null,0]
[null,null,null,null,null,null,null,0,null,0,0,0,0,0,null,0]
[null,null,null,null,null,null,null,0,null,0,0,0,0,0,null,0]
[null,null,null,null,null,null,null,0,null,0,0,0,0,0,null,0]
[null,null,null,null,null,null,null,0,null,0,0,0,0,0,null,0]
[null,null,null,null,null,null,null,0,null,0,0,0,0,0,null,0]
[null,null,null,null,null,null,null,0,null,0,0,0,0,0,null,0]
[null,null,null,null,null,null,null,0,null,0,0,0,0,0,null,0]
[null,null,null,null,null,null,null,0,null,0,0,0,0,0,null,0]
[null,null,null,null,null,null,null,0,null,0,0,0,0,0,null,0]
[null,null,null,null,null,null,null,0,null,0,0,0,0,0,null,0]
[null,null,null,null,null,null,null,0,null,0,0,0,0,0,null,0]
[null,null,null,null,null,null,null,0,null,0,0,0,0,0,null,0]
[null,null,null,null,null,null,null,0,null,0,0,0,0,0,null,0]
[null,null,null,null,null,null,null,0,null,0,0,0,0,0,null,0]
[null,null,null,null,null,null,null,0,null,0,0,0,0,0,null,0]
[null,null,null,null,null,null,null,0,null,0,0,0,0,0,null,0]
[null,null,null,null,null,null,null,0,null,0,0,0,0,0,null,0]
[null,null,null,null,null,null,null,0,null,0,0,0,0,0,null,0]
[null,null,null,null,null,null,null,0,null,0,0,0,0,0,null,0]
[null,null,null,null,null,null,null,0,null,0,0,0,0,0,null,0]
[null,null,null,null,null,null,null,0,null,0,0,0,0,0,null,0]
[null,null,null,null,null,null,null,0,null,0,0,0,0,0,null,0]
[null,null,null,null,null,null,null,0,null,0,0,0,0,0,null,0]
[null,null,null,null,null,null,null,0,null,0,0,0,0,0,null,{"$f":"IF(AND(L656<>0,L657=0),ROW(L656),0)","v":0}]
[null,null,null,null,null,null,null,0,null,0,0,0,0,0,null,0]
[null,null,null,null,null,null,null,0,null,0,0,0,0,0,null,0]
[null,null,null,null,null,null,null,0,null,0,0,0,0,0,null,0]
[null,null,null,null,null,null,null,0,null,0,0,0,0,0,null,0]
[null,null,null,null,null,null,null,0,null,0,0,0,0,0,null,0]
[null,null,null,null,null,null,null,0,null,0,0,0,0,0,null,0]
[null,null,null,null,null,null,null,0,null,0,0,0,0,0,null,0]
[null,null,null,null,null,null,null,0,null,0,0,0,0,0,null,0]
[null,null,null,null,null,null,null,0,null,0,0,0,0,0,null,0]
[null,null,null,null,null,null,null,0,null,0,0,0,0,0,null,0]
[null,null,null,null,null,null,null,0,null,0,0,0,0,0,null,0]
[null,null,null,null,null,null,null,0,null,0,0,0,0,0,null,0]
[null,null,null,null,null,null,null,0,null,0,0,0,0,0,null,0]
[null,null,null,null,null,null,null,0,null,0,0,0,0,0,null,0]
[null,null,null,null,null,null,null,0,null,0,0,0,0,0,null,0]
[null,null,null,null,null,null,null,0,null,0,0,0,0,0,null,0]
[null,null,null,null,null,null,null,0,null,0,0,0,0,0,null,0]
[null,null,null,null,null,null,null,0,null,0,0,0,0,0,null,0]
[null,null,null,null,null,null,null,0,null,0,0,0,0,0,null,0]
[null,null,null,null,null,null,null,0,null,0,0,0,0,0,null,0]
[null,null,null,null,null,null,null,0,null,0,0,0,0,0,null,0]
[null,null,null,null,null,null,null,0,null,0,0,0,0,0,null,0]
[null,null,null,null,null,null,null,0,null,0,0,0,0,0,null,0]
[null,null,null,null,null,null,null,0,null,0,0,0,0,0,null,0]
[null,null,null,null,null,null,null,0,null,0,0,0,0,0,null,0]
[null,null,null,null,null,null,null,0,null,0,0,0,0,0,null,0]
[null,null,null,null,null,null,null,0,null,0,0,0,0,0,null,0]
[null,null,null,null,null,null,null,0,null,0,0,0,0,0,null,0]
[null,null,null,null,null,null,null,0,null,0,0,0,0,0,null,0]
[null,null,null,null,null,null,null,0,null,0,0,0,0,0,null,0]
[null,null,null,null,null,null,null,0,null,0,0,0,0,0,null,0]
[null,null,null,null,null,null,null,{"$f":"F688*G688","v":0},null,{"$f":"IF(I688<>\"\",M687,0)","v":0},{"$f":"I688*J688","v":0},{"$f":"IF(AND(F688<>0,I688=0),L687+F688,IF(AND(I688<>0,F688=0),L687-I688,0))","v":0},{"$f":"IF(AND(F688=0,I688=0),0,IF(F688<>\"\",(N687+H688)/L688,M687))","v":0},{"$f":"L688*M688","v":0},null,0]
[null,null,null,null,null,null,null,0,null,0,0,0,0,0,null,0]
[null,null,null,null,null,null,null,0,null,0,0,0,0,0,null,0]
[null,null,null,null,null,null,null,0,null,0,0,0,0,0,null,0]
[null,null,null,null,null,null,null,0,null,0,0,0,0,0,null,0]
[null,null,null,null,null,null,null,0,null,0,0,0,0,0,null,0]
[null,null,null,null,null,null,null,0,null,0,0,0,0,0,null,0]
[null,null,null,null,null,null,null,0,null,0,0,0,0,0,null,0]
[null,null,null,null,null,null,null,0,null,0,0,0,0,0,null,0]
[null,null,null,null,null,null,null,0,null,0,0,0,0,0,null,0]
[null,null,null,null,null,null,null,0,null,0,0,0,0,0,null,0]
[null,null,null,null,null,null,null,0,null,0,0,0,0,0,null,0]
[null,null,null,null,null,null,null,0,null,0,0,0,0,0,null,0]
[null,null,null,null,null,null,null,0,null,0,0,0,0,0,null,0]
[null,null,null,null,null,null,null,0,null,0,0,0,0,0,null,0]
[null,null,null,null,null,null,null,0,null,0,0,0,0,0,null,0]
[null,null,null,null,null,null,null,0,null,0,0,0,0,0,null,0]
[null,null,null,null,null,null,null,0,null,0,0,0,0,0,null,0]
[null,null,null,null,null,null,null,0,null,0,0,0,0,0,null,0]
[null,null,null,null,null,null,null,0,null,0,0,0,0,0,null,0]
[null,null,null,null,null,null,null,0,null,0,0,0,0,0,null,0]
[null,null,null,null,null,null,null,0,null,0,0,0,0,0,null,0]
[null,null,null,null,null,null,null,0,null,0,0,0,0,0,null,0]
[null,null,null,null,null,null,null,0,null,0,0,0,0,0,null,0]
[null,null,null,null,null,null,null,0,null,0,0,0,0,0,null,0]
[null,null,null,null,null,null,null,0,null,0,0,0,0,0,null,0]
[null,null,null,null,null,null,null,0,null,0,0,0,0,0,null,0]
[null,null,null,null,null,null,null,0,null,0,0,0,0,0,null,0]
[null,null,null,null,null,null,null,0,null,0,0,0,0,0,null,0]
[null,null,null,null,null,null,null,0,null,0,0,0,0,0,null,0]
[null,null,null,null,null,null,null,0,null,0,0,0,0,0,null,0]
[null,null,null,null,null,null,null,0,null,0,0,0,0,0,null,0]
[null,null,null,null,null,null,null,0,null,0,0,0,0,0,null,{"$f":"IF(AND(L720<>0,L721=0),ROW(L720),0)","v":0}]
[null,null,null,null,null,null,null,0,null,0,0,0,0,0,null,0]
[null,null,null,null,null,null,null,0,null,0,0,0,0,0,null,0]
[null,null,null,null,null,null,null,0,null,0,0,0,0,0,null,0]
[null,null,null,null,null,null,null,0,null,0,0,0,0,0,null,0]
[null,null,null,null,null,null,null,0,null,0,0,0,0,0,null,0]
[null,null,null,null,null,null,null,0,null,0,0,0,0,0,null,0]
[null,null,null,null,null,null,null,0,null,0,0,0,0,0,null,0]
[null,null,null,null,null,null,null,0,null,0,0,0,0,0,null,0]
[null,null,null,null,null,null,null,0,null,0,0,0,0,0,null,0]
[null,null,null,null,null,null,null,0,null,0,0,0,0,0,null,0]
[null,null,null,null,null,null,null,0,null,0,0,0,0,0,null,0]
[null,null,null,null,null,null,null,0,null,0,0,0,0,0,null,0]
[null,null,null,null,null,null,null,0,null,0,0,0,0,0,null,0]
[null,null,null,null,null,null,null,0,null,0,0,0,0,0,null,0]
[null,null,null,null,null,null,null,0,null,0,0,0,0,0,null,0]
[null,null,null,null,null,null,null,0,null,0,0,0,0,0,null,0]
[null,null,null,null,null,null,null,0,null,0,0,0,0,0,null,0]
[null,null,null,null,null,null,null,0,null,0,0,0,0,0,null,0]
[null,null,null,null,null,null,null,0,null,0,0,0,0,0,null,0]
[null,null,null,null,null,null,null,0,null,0,0,0,0,0,null,0]
[null,null,null,null,null,null,null,0,null,0,0,0,0,0,null,0]
[null,null,null,null,null,null,null,0,null,0,0,0,0,0,null,0]
[null,null,null,null,null,null,null,0,null,0,0,0,0,0,null,0]
[null,null,null,null,null,null,null,0,null,0,0,0,0,0,null,0]
[null,null,null,null,null,null,null,0,null,0,0,0,0,0,null,0]
[null,null,null,null,null,null,null,0,null,0,0,0,0,0,null,0]
[null,null,null,null,null,null,null,0,null,0,0,0,0,0,null,0]
[null,null,null,null,null,null,null,0,null,0,0,0,0,0,null,0]
[null,null,null,null,null,null,null,0,null,0,0,0,0,0,null,0]
[null,null,null,null,null,null,null,0,null,0,0,0,0,0,null,0]
[null,null,null,null,null,null,null,0,null,0,0,0,0,0,null,0]
[null,null,null,null,null,null,null,{"$f":"F752*G752","v":0},null,{"$f":"IF(I752<>\"\",M751,0)","v":0},{"$f":"I752*J752","v":0},{"$f":"IF(AND(F752<>0,I752=0),L751+F752,IF(AND(I752<>0,F752=0),L751-I752,0))","v":0},{"$f":"IF(AND(F752=0,I752=0),0,IF(F752<>\"\",(N751+H752)/L752,M751))","v":0},{"$f":"L752*M752","v":0},null,0]
[null,null,null,null,null,null,null,0,null,0,0,0,0,0,null,0]
[null,null,null,null,null,null,null,0,null,0,0,0,0,0,null,0]
[null,null,null,null,null,null,null,0,null,0,0,0,0,0,null,0]
[null,null,null,null,null,null,null,0,null,0,0,0,0,0,null,0]
[null,null,null,null,null,null,null,0,null,0,0,0,0,0,null,0]
[null,null,null,null,null,null,null,0,null,0,0,0,0,0,null,0]
[null,null,null,null,null,null,null,0,null,0,0,0,0,0,null,0]
[null,null,null,null,null,null,null,0,null,0,0,0,0,0,null,0]
[null,null,null,null,null,null,null,0,null,0,0,0,0,0,null,0]
[null,null,null,null,null,null,null,0,null,0,0,0,0,0,null,0]
[null,null,null,null,null,null,null,0,null,0,0,0,0,0,null,0]
[null,null,null,null,null,null,null,0,null,0,0,0,0,0,null,0]
[null,null,null,null,null,null,null,0,null,0,0,0,0,0,null,0]
[null,null,null,null,null,null,null,0,null,0,0,0,0,0,null,0]
[null,null,null,null,null,null,null,0,null,0,0,0,0,0,null,0]
[null,null,null,null,null,null,null,0,null,0,0,0,0,0,null,0]
[null,null,null,null,null,null,null,0,null,0,0,0,0,0,null,0]
[null,null,null,null,null,null,null,0,null,0,0,0,0,0,null,0]
[null,null,null,null,null,null,null,0,null,0,0,0,0,0,null,0]
[null,null,null,null,null,null,null,0,null,0,0,0,0,0,null,0]
[null,null,null,null,null,null,null,0,null,0,0,0,0,0,null,0]
[null,null,null,null,null,null,null,0,null,0,0,0,0,0,null,0]
[null,null,null,null,null,null,null,0,null,0,0,0,0,0,null,0]
[null,null,null,null,null,null,null,0,null,0,0,0,0,0,null,0]
[null,null,null,null,null,null,null,0,null,0,0,0,0,0,null,0]
[null,null,null,null,null,null,null,0,null,0,0,0,0,0,null,0]
[null,null,null,null,null,null,null,0,null,0,0,0,0,0,null,0]
[null,null,null,null,null,null,null,0,null,0,0,0,0,0,null,0]
[null,null,null,null,null,null,null,0,null,0,0,0,0,0,null,0]
[null,null,null,null,null,null,null,0,null,0,0,0,0,0,null,0]
[null,null,null,null,null,null,null,0,null,0,0,0,0,0,null,0]
[null,null,null,null,null,null,null,0,null,0,0,0,0,0,null,{"$f":"IF(AND(L784<>0,L785=0),ROW(L784),0)","v":0}]
[null,null,null,null,null,null,null,0,null,0,0,0,0,0,null,0]
[null,null,null,null,null,null,null,0,null,0,0,0,0,0,null,0]
[null,null,null,null,null,null,null,0,null,0,0,0,0,0,null,0]
[null,null,null,null,null,null,null,0,null,0,0,0,0,0,null,0]
[null,null,null,null,null,null,null,0,null,0,0,0,0,0,null,0]
[null,null,null,null,null,null,null,0,null,0,0,0,0,0,null,0]
[null,null,null,null,null,null,null,0,null,0,0,0,0,0,null,0]
[null,null,null,null,null,null,null,0,null,0,0,0,0,0,null,0]
[null,null,null,null,null,null,null,0,null,0,0,0,0,0,null,0]
[null,null,null,null,null,null,null,0,null,0,0,0,0,0,null,0]
[null,null,null,null,null,null,null,0,null,0,0,0,0,0,null,0]
[null,null,null,null,null,null,null,0,null,0,0,0,0,0,null,0]
[null,null,null,null,null,null,null,0,null,0,0,0,0,0,null,0]
[null,null,null,null,null,null,null,0,null,0,0,0,0,0,null,0]
[null,null,null,null,null,null,null,0,null,0,0,0,0,0,null,0]
[null,null,null,null,null,null,null,0,null,0,0,0,0,0,null,0]
[null,null,null,null,null,null,null,0,null,0,0,0,0,0,null,0]
[null,null,null,null,null,null,null,0,null,0,0,0,0,0,null,0]
[null,null,null,null,null,null,null,0,null,0,0,0,0,0,null,0]
[null,null,null,null,null,null,null,0,null,0,0,0,0,0,null,0]
[null,null,null,null,null,null,null,0,null,0,0,0,0,0,null,0]
[null,null,null,null,null,null,null,0,null,0,0,0,0,0,null,0]
[null,null,null,null,null,null,null,0,null,0,0,0,0,0,null,0]
[null,null,null,null,null,null,null,0,null,0,0,0,0,0,null,0]
[null,null,null,null,null,null,null,0,null,0,0,0,0,0,null,0]
[null,null,null,null,null,null,null,0,null,0,0,0,0,0,null,0]
[null,null,null,null,null,null,null,0,null,0,0,0,0,0,null,0]
[null,null,null,null,null,null,null,0,null,0,0,0,0,0,null,0]
[null,null,null,null,null,null,null,0,null,0,0,0,0,0,null,0]
[null,null,null,null,null,null,null,0,null,0,0,0,0,0,null,0]
[null,null,null,null,null,null,null,0,null,0,0,0,0,0,null,0]
[null,null,null,null,null,null,null,{"$f":"F816*G816","v":0},null,{"$f":"IF(I816<>\"\",M815,0)","v":0},{"$f":"I816*J816","v":0},{"$f":"IF(AND(F816<>0,I816=0),L815+F816,IF(AND(I816<>0,F816=0),L815-I816,0))","v":0},{"$f":"IF(AND(F816=0,I816=0),0,IF(F816<>\"\",(N815+H816)/L816,M815))","v":0},{"$f":"L816*M816","v":0},null,0]
[null,null,null,null,null,null,null,0,null,0,0,0,0,0,null,0]
[null,null,null,null,null,null,null,0,null,0,0,0,0,0,null,0]
[null,null,null,null,null,null,null,0,null,0,0,0,0,0,null,0]
[null,null,null,null,null,null,null,0,null,0,0,0,0,0,null,0]
[null,null,null,null,null,null,null,0,null,0,0,0,0,0,null,0]
[null,null,null,null,null,null,null,0,null,0,0,0,0,0,null,0]
[null,null,null,null,null,null,null,0,null,0,0,0,0,0,null,0]
[null,null,null,null,null,null,null,0,null,0,0,0,0,0,null,0]
[null,null,null,null,null,null,null,0,null,0,0,0,0,0,null,0]
[null,null,null,null,null,null,null,0,null,0,0,0,0,0,null,0]
[null,null,null,null,null,null,null,0,null,0,0,0,0,0,null,0]
[null,null,null,null,null,null,null,0,null,0,0,0,0,0,null,0]
[null,null,null,null,null,null,null,0,null,0,0,0,0,0,null,0]
[null,null,null,null,null,null,null,0,null,0,0,0,0,0,null,0]
[null,null,null,null,null,null,null,0,null,0,0,0,0,0,null,0]
[null,null,null,null,null,null,null,0,null,0,0,0,0,0,null,0]
[null,null,null,null,null,null,null,0,null,0,0,0,0,0,null,0]
[null,null,null,null,null,null,null,0,null,0,0,0,0,0,null,0]
[null,null,null,null,null,null,null,0,null,0,0,0,0,0,null,0]
[null,null,null,null,null,null,null,0,null,0,0,0,0,0,null,0]
[null,null,null,null,null,null,null,0,null,0,0,0,0,0,null,0]
[null,null,null,null,null,null,null,0,null,0,0,0,0,0,null,0]
[null,null,null,null,null,null,null,0,null,0,0,0,0,0,null,0]
[null,null,null,null,null,null,null,0,null,0,0,0,0,0,null,0]
[null,null,null,null,null,null,null,0,null,0,0,0,0,0,null,0]
[null,null,null,null,null,null,null,0,null,0,0,0,0,0,null,0]
[null,null,null,null,null,null,null,0,null,0,0,0,0,0,null,0]
[null,null,null,null,null,null,null,0,null,0,0,0,0,0,null,0]
[null,null,null,null,null,null,null,0,null,0,0,0,0,0,null,0]
[null,null,null,null,null,null,null,0,null,0,0,0,0,0,null,0]
[null,null,null,null,null,null,null,0,null,0,0,0,0,0,null,0]
[null,null,null,null,null,null,null,0,null,0,0,0,0,0,null,{"$f":"IF(AND(L848<>0,L849=0),ROW(L848),0)","v":0}]
[null,null,null,null,null,null,null,0,null,0,0,0,0,0,null,0]
[null,null,null,null,null,null,null,0,null,0,0,0,0,0,null,0]
[null,null,null,null,null,null,null,0,null,0,0,0,0,0,null,0]
[null,null,null,null,null,null,null,0,null,0,0,0,0,0,null,0]
[null,null,null,null,null,null,null,0,null,0,0,0,0,0,null,0]
[null,null,null,null,null,null,null,0,null,0,0,0,0,0,null,0]
[null,null,null,null,null,null,null,0,null,0,0,0,0,0,null,0]
[null,null,null,null,null,null,null,0,null,0,0,0,0,0,null,0]
[null,null,null,null,null,null,null,0,null,0,0,0,0,0,null,0]
[null,null,null,null,null,null,null,0,null,0,0,0,0,0,null,0]
[null,null,null,null,null,null,null,0,null,0,0,0,0,0,null,0]
[null,null,null,null,null,null,null,0,null,0,0,0,0,0,null,0]
[null,null,null,null,null,null,null,0,null,0,0,0,0,0,null,0]
[null,null,null,null,null,null,null,0,null,0,0,0,0,0,null,0]
[null,null,null,null,null,null,null,0,null,0,0,0,0,0,null,0]
[null,null,null,null,null,null,null,0,null,0,0,0,0,0,null,0]
[null,null,null,null,null,null,null,0,null,0,0,0,0,0,null,0]
[null,null,null,null,null,null,null,0,null,0,0,0,0,0,null,0]
[null,null,null,null,null,null,null,0,null,0,0,0,0,0,null,0]
[null,null,null,null,null,null,null,0,null,0,0,0,0,0,null,0]
[null,null,null,null,null,null,null,0,null,0,0,0,0,0,null,0]
[null,null,null,null,null,null,null,0,null,0,0,0,0,0,null,0]
[null,null,null,null,null,null,null,0,null,0,0,0,0,0,null,0]
[null,null,null,null,null,null,null,0,null,0,0,0,0,0,null,0]
[null,null,null,null,null,null,null,0,null,0,0,0,0,0,null,0]
[null,null,null,null,null,null,null,0,null,0,0,0,0,0,null,0]
[null,null,null,null,null,null,null,0,null,0,0,0,0,0,null,0]
[null,null,null,null,null,null,null,0,null,0,0,0,0,0,null,0]
[null,null,null,null,null,null,null,0,null,0,0,0,0,0,null,0]
[null,null,null,null,null,null,null,0,null,0,0,0,0,0,null,0]
[null,null,null,null,null,null,null,0,null,0,0,0,0,0,null,0]
[null,null,null,null,null,null,null,{"$f":"F880*G880","v":0},null,{"$f":"IF(I880<>\"\",M879,0)","v":0},{"$f":"I880*J880","v":0},{"$f":"IF(AND(F880<>0,I880=0),L879+F880,IF(AND(I880<>0,F880=0),L879-I880,0))","v":0},{"$f":"IF(AND(F880=0,I880=0),0,IF(F880<>\"\",(N879+H880)/L880,M879))","v":0},{"$f":"L880*M880","v":0},null,0]
[null,null,null,null,null,null,null,0,null,0,0,0,0,0,null,0]
[null,null,null,null,null,null,null,0,null,0,0,0,0,0,null,0]
[null,null,null,null,null,null,null,0,null,0,0,0,0,0,null,0]
[null,null,null,null,null,null,null,0,null,0,0,0,0,0,null,0]
[null,null,null,null,null,null,null,0,null,0,0,0,0,0,null,0]
[null,null,null,null,null,null,null,0,null,0,0,0,0,0,null,0]
[null,null,null,null,null,null,null,0,null,0,0,0,0,0,null,0]
[null,null,null,null,null,null,null,0,null,0,0,0,0,0,null,0]
[null,null,null,null,null,null,null,0,null,0,0,0,0,0,null,0]
[null,null,null,null,null,null,null,0,null,0,0,0,0,0,null,0]
[null,null,null,null,null,null,null,0,null,0,0,0,0,0,null,0]
[null,null,null,null,null,null,null,0,null,0,0,0,0,0,null,0]
[null,null,null,null,null,null,null,0,null,0,0,0,0,0,null,0]
[null,null,null,null,null,null,null,0,null,0,0,0,0,0,null,0]
[null,null,null,null,null,null,null,0,null,0,0,0,0,0,null,0]
[null,null,null,null,null,null,null,0,null,0,0,0,0,0,null,0]
[null,null,null,null,null,null,null,0,null,0,0,0,0,0,null,0]
[null,null,null,null,null,null,null,0,null,0,0,0,0,0,null,0]
[null,null,null,null,null,null,null,0,null,0,0,0,0,0,null,0]
[null,null,null,null,null,null,null,0,null,0,0,0,0,0,null,0]
[null,null,null,null,null,null,null,0,null,0,0,0,0,0,null,0]
[null,null,null,null,null,null,null,0,null,0,0,0,0,0,null,0]
[null,null,null,null,null,null,null,0,null,0,0,0,0,0,null,0]
[null,null,null,null,null,null,null,0,null,0,0,0,0,0,null,0]
[null,null,null,null,null,null,null,0,null,0,0,0,0,0,null,0]
[null,null,null,null,null,null,null,0,null,0,0,0,0,0,null,0]
[null,null,null,null,null,null,null,0,null,0,0,0,0,0,null,0]
[null,null,null,null,null,null,null,0,null,0,0,0,0,0,null,0]
[null,null,null,null,null,null,null,0,null,0,0,0,0,0,null,0]
[null,null,null,null,null,null,null,0,null,0,0,0,0,0,null,0]
[null,null,null,null,null,null,null,0,null,0,0,0,0,0,null,0]
[null,null,null,null,null,null,null,0,null,0,0,0,0,0,null,{"$f":"IF(AND(L912<>0,L913=0),ROW(L912),0)","v":0}]
[null,null,null,null,null,null,null,0,null,0,0,0,0,0,null,0]
[null,null,null,null,null,null,null,0,null,0,0,0,0,0,null,0]
[null,null,null,null,null,null,null,0,null,0,0,0,0,0,null,0]
[null,null,null,null,null,null,null,0,null,0,0,0,0,0,null,0]
[null,null,null,null,null,null,null,0,null,0,0,0,0,0,null,0]
[null,null,null,null,null,null,null,0,null,0,0,0,0,0,null,0]
[null,null,null,null,null,null,null,0,null,0,0,0,0,0,null,0]
[null,null,null,null,null,null,null,0,null,0,0,0,0,0,null,0]
[null,null,null,null,null,null,null,0,null,0,0,0,0,0,null,0]
[null,null,null,null,null,null,null,0,null,0,0,0,0,0,null,0]
[null,null,null,null,null,null,null,0,null,0,0,0,0,0,null,0]
[null,null,null,null,null,null,null,0,null,0,0,0,0,0,null,0]
[null,null,null,null,null,null,null,0,null,0,0,0,0,0,null,0]
[null,null,null,null,null,null,null,0,null,0,0,0,0,0,null,0]
[null,null,null,null,null,null,null,0,null,0,0,0,0,0,null,0]
[null,null,null,null,null,null,null,0,null,0,0,0,0,0,null,0]
[null,null,null,null,null,null,null,0,null,0,0,0,0,0,null,0]
[null,null,null,null,null,null,null,0,null,0,0,0,0,0,null,0]
[null,null,null,null,null,null,null,0,null,0,0,0,0,0,null,0]
[null,null,null,null,null,null,null,0,null,0,0,0,0,0,null,0]
[null,null,null,null,null,null,null,0,null,0,0,0,0,0,null,0]
[null,null,null,null,null,null,null,0,null,0,0,0,0,0,null,0]
[null,null,null,null,null,null,null,0,null,0,0,0,0,0,null,0]
[null,null,null,null,null,null,null,0,null,0,0,0,0,0,null,0]
[null,null,null,null,null,null,null,0,null,0,0,0,0,0,null,0]
[null,null,null,null,null,null,null,0,null,0,0,0,0,0,null,0]
[null,null,null,null,null,null,null,0,null,0,0,0,0,0,null,0]
[null,null,null,null,null,null,null,0,null,0,0,0,0,0,null,0]
[null,null,null,null,null,null,null,0,null,0,0,0,0,0,null,0]
[null,null,null,null,null,null,null,0,null,0,0,0,0,0,null,0]
[null,null,null,null,null,null,null,0,null,0,0,0,0,0,null,0]
[null,null,null,null,null,null,null,{"$f":"F944*G944","v":0},null,{"$f":"IF(I944<>\"\",M943,0)","v":0},{"$f":"I944*J944","v":0},{"$f":"IF(AND(F944<>0,I944=0),L943+F944,IF(AND(I944<>0,F944=0),L943-I944,0))","v":0},{"$f":"IF(AND(F944=0,I944=0),0,IF(F944<>\"\",(N943+H944)/L944,M943))","v":0},{"$f":"L944*M944","v":0},null,0]
[null,null,null,null,null,null,null,0,null,0,0,0,0,0,null,0]
[null,null,null,null,null,null,null,0,null,0,0,0,0,0,null,0]
[null,null,null,null,null,null,null,0,null,0,0,0,0,0,null,0]
[null,null,null,null,null,null,null,0,null,0,0,0,0,0,null,0]
[null,null,null,null,null,null,null,0,null,0,0,0,0,0,null,0]
[null,null,null,null,null,null,null,0,null,0,0,0,0,0,null,0]
[null,null,null,null,null,null,null,0,null,0,0,0,0,0,null,0]
[null,null,null,null,null,null,null,0,null,0,0,0,0,0,null,0]
[null,null,null,null,null,null,null,0,null,0,0,0,0,0,null,0]
[null,null,null,null,null,null,null,0,null,0,0,0,0,0,null,0]
[null,null,null,null,null,null,null,0,null,0,0,0,0,0,null,0]
[null,null,null,null,null,null,null,0,null,0,0,0,0,0,null,0]
[null,null,null,null,null,null,null,0,null,0,0,0,0,0,null,0]
[null,null,null,null,null,null,null,0,null,0,0,0,0,0,null,0]
[null,null,null,null,null,null,null,0,null,0,0,0,0,0,null,0]
[null,null,null,null,null,null,null,0,null,0,0,0,0,0,null,0]
[null,null,null,null,null,null,null,0,null,0,0,0,0,0,null,0]
[null,null,null,null,null,null,null,0,null,0,0,0,0,0,null,0]
[null,null,null,null,null,null,null,0,null,0,0,0,0,0,null,0]
[null,null,null,null,null,null,null,0,null,0,0,0,0,0,null,0]
[null,null,null,null,null,null,null,0,null,0,0,0,0,0,null,0]
[null,null,null,null,null,null,null,0,null,0,0,0,0,0,null,0]
[null,null,null,null,null,null,null,0,null,0,0,0,0,0,null,0]
[null,null,null,null,null,null,null,0,null,0,0,0,0,0,null,0]
[null,null,null,null,null,null,null,0,null,0,0,0,0,0,null,0]
[null,null,null,null,null,null,null,0,null,0,0,0,0,0,null,0]
[null,null,null,null,null,null,null,0,null,0,0,0,0,0,null,0]
[null,null,null,null,null,null,null,0,null,0,0,0,0,0,null,0]
[null,null,null,null,null,null,null,0,null,0,0,0,0,0,null,0]
[null,null,null,null,null,null,null,0,null,0,0,0,0,0,null,0]
[null,null,null,null,null,null,null,0,null,0,0,0,0,0,null,0]
[null,null,null,null,null,null,null,0,null,0,0,0,0,0,null,{"$f":"IF(AND(L976<>0,L977=0),ROW(L976),0)","v":0}]
[null,null,null,null,null,null,null,0,null,0,0,0,0,0,null,0]
[null,null,null,null,null,null,null,0,null,0,0,0,0,0,null,0]
[null,null,null,null,null,null,null,0,null,0,0,0,0,0,null,0]
[null,null,null,null,null,null,null,0,null,0,0,0,0,0,null,0]
[null,null,null,null,null,null,null,0,null,0,0,0,0,0,null,0]
[null,null,null,null,null,null,null,0,null,0,0,0,0,0,null,0]
[null,null,null,null,null,null,null,0,null,0,0,0,0,0,null,0]
[null,null,null,null,null,null,null,0,null,0,0,0,0,0,null,0]
[null,null,null,null,null,null,null,0,null,0,0,0,0,0,null,0]
[null,null,null,null,null,null,null,0,null,0,0,0,0,0,null,0]
[null,null,null,null,null,null,null,0,null,0,0,0,0,0,null,0]
[null,null,null,null,null,null,null,0,null,0,0,0,0,0,null,0]
[null,null,null,null,null,null,null,0,null,0,0,0,0,0,null,0]
[null,null,null,null,null,null,null,0,null,0,0,0,0,0,null,0]
[null,null,null,null,null,null,null,0,null,0,0,0,0,0,null,0]
[null,null,null,null,null,null,null,0,null,0,0,0,0,0,null,0]
[null,null,null,null,null,null,null,0,null,0,0,0,0,0,null,0]
[null,null,null,null,null,null,null,0,null,0,0,0,0,0,null,0]
[null,null,null,null,null,null,null,0,null,0,0,0,0,0,null,0]
[null,null,null,null,null,null,null,0,null,0,0,0,0,0,null,0]
[null,null,null,null,null,null,null,0,null,0,0,0,0,0,null,0]
[null,null,null,null,null,null,null,0,null,0,0,0,0,0,null,0]
[null,null,null,null,null,null,null,0,null,0,0,0,0,0,null,0]
[null,null,null,null,null,null,null,0,null,0,0,0,0,0,null,0]

{"sheet":"Instrucciones","index":1,"n_rows":196,"n_cols":3,"rows_kept":196,"cut":false,"hidden":false,"merged":[[195,2,196,12],[71,2,73,12],[84,2,86,12],[98,2,100,12],[113,2,116,12],[1,0,1,12],[8,0,8,12],[174,0,174,12],[53,2,54,12],[3,1,4,11],[10,2,11,12],[29,2,30,12],[50,2,51,12],[151,2,152,12]]}
[]
["INSTRUCCIONES"]
[]
[null,"Es importante aclarar que el ingreso de productos nuevos a la base de datos, asi como la eliminación y los movimientos de cantidades en el inventario, se debe realizar SOLO desde la hoja CONTROL INVENTARIO"]
[]
[]
[]
[]
["1. Para ingresar PRODUCTOS nuevos al inventario:"]
[]
[null,null,"Primero observemos que en la parte inferior de la hoja CONTROL INVENTARIO, tenemos un resumen de todos los productos que tenemos en nuestro inventario donde se puede observar el código de cada uno, el nombre, una Descripción y la Cantidad de Unidades disponibles."]
[]
[]
[]
[]
[]
[]
[]
[]
[]
[]
[]
[]
[]
[]
[]
[]
[]
[]
[null,null,"Para iniciar, debemos ingresar los productos que administraremos desde el inventario; para ello, nos dirigimo a la esquina inferior derecha de la hoja CONTROL INVENTARIO donde encontraremos el botón AGREGAR PRODUCTOS"]
[]
[]
[]
[]
[]
[]
[]
[]
[]
[]
[]
[]
[]
[]
[]
[]
[]
[]
[]
[null,null,"Con esto se abre una ventana de diálogo con los sigiuentes campos:"]
[null,null,"CÓDIGO DEL PRODUCTO: Este campo corresponde al código de identificación del producto y es único para cada Producto. NOTA: Este código se genera automáticamente"]
[]
[null,null,"NOMBRE DE PRODUCTO: En este campo debes digitar el nombre del producto"]
[null,null,"DESCRIPCIÓN DEL PRODUCTO: En este campo debes digitar una descripción o las características del producto de manera que puedas diferencialo mejor"]
[]
[]
[]
[]
[]
[]
[]
[]
[]
[]
[]
[]
[]
[]
[]
[]
[]
[null,null,"Ahora veremos que en el resumen de productos, ya tenemos el que acabamos de ingresar asi como también tenemos una nueva hoja en nuestro libro cuyo nombre es el código del producto. En dicha hoja es donde se registrarán todos los movimientos de entradas y salidas de unidades del producto"]
[]
[]
[]
[]
[]
[]
[]
[]
[]
[]
[]
[]
[null,null,"Ahora debemos ingresar el Saldo Inicial en inventario para los productos; para ello nos ubicamos en la parte superior de la hoja específicamente en la celda  C7 donde debemos seleccionar de la lista desplegable el código del producto al cual queremos registrar el Saldo Inicial"]
[]
[]
[]
[]
[]
[]
[]
[]
[]
[]
[]
[]
[]
[null,null,"Al seleccionar el código, en los campos de la derecha se refresca la información de Nombre del Producto, las Unidades Disponibles en el Inventario asi como el Precio Unitario calculado por el Método de Promedio Ponderado según los movimientos de entradas y salidas que registremos en el Inventario"]
[]
[]
[]
[]
[]
[]
[]
[]
[]
[]
[]
[]
[]
[]
[null,null,"Debido a que el producto con código 1 lo acabamos de ingresar, los datos de Unidades y Precio Unitario en Inventario son 0; así que vamos a ingresar el Saldo Inicial de este producto. NOTA: El primer registro de cada producto debe ser el SALDO INICIAL. Para ello nos ubicamos en la celda D10 donde podemos escoger todos los tipos de movimientos que se pueden dar para un producto en el inventario, en este caso debemos escoger la opción Saldo Inicial"]
[]
[]
[]
[]
[]
[]
[]
[]
[]
[]
[]
[]
[]
[]
[]
[null,null,"Luego debemos ingresar los campos:"]
[null,null,"FECHA (Campo Obligatorio): Corresponde a la fecha en que se realiza el movimiento"]
[null,null,"NRO. FACTURA (Campo Opcional): Corresponde a la factura que relaciona el movimiento"]
[null,null,"UNDIADES (Campo Obligatorio): Corresponde al número de unidades que se van a registrar en el inventario"]
[null,null,"PRECIO UNIDAD (Campo Obligatorio): Corresponde al precio unitario del producto y que se va a registrar en el inventario"]
[]
[null,null,"El sistema calcula el PRECIO TOTAL"]
[]
[]
[]
[]
[]
[]
[]
[]
[]
[]
[]
[]
[null,null,"NOTA: Si todos los campos Obligarios no estan diligenciados el sistema no permite registrar el Movimiento"]
[]
[]
[null,null,"Finalmente damos Clic en el botón Registrar Movimiento y veremos que en el cuadro de Resumen del Inventario Total, ya nos indica la cantidad para el producto ingresado, el precio unitario en la parte superior y un Balance de los movimientos en la derecha de la hoja:"]
[]
[]
[]
[]
[]
[]
[]
[]
[]
[]
[]
[]
[]
[]
[]
[]
[]
[]
[]
[null,null,"Ahora que ya ingresamos el Saldo Inicial del producto, podremos registrar los demas movimientos de ventas y compras"]
[]
[]
["2.Para Eliminar Productos del Inventario"]
[]
[null,null,"Nos ubicamos en la esquina inferior derecha en el botón ELIMINAR PRODUCTOS"]
[]
[]
[]
[]
[]
[]
[]
[]
[]
[]
[]
[]
[]
[]
[]
[]
[]
[]
[null,null,"Al dar clic, se abre una ventana donde debemos escoger el código del producto que necesitamos eliminar; con esto se refresca el nombre y la descripción del producto para luego dar clic al botón Eliminar Producto y luego Confirmar la acción:"]

{"sheet":"BD PRODUCTOS","index":2,"n_rows":3,"n_cols":4,"rows_kept":3,"cut":false,"hidden":true,"merged":[]}
[null,{"$f":"MAX(B4:B990)","v":0}]
[]
[null,"Código","Producto","Descripción"]

{"sheet":"Tabla","index":3,"n_rows":7,"n_cols":1,"rows_kept":7,"cut":false,"hidden":true,"merged":[]}
["Movimiento"]
["Saldo Inicial"]
["Compra"]
["Venta"]
["Devolución de Cliente"]
["Devolución a Proveedor"]
["Retiro Otro Concepto"]

{"sheet":"CONTROL INVENTARIO","index":4,"n_rows":33,"n_cols":14,"rows_kept":33,"cut":false,"hidden":false,"merged":[[7,11,7,12],[12,11,12,12],[10,11,10,12],[23,4,23,6],[24,4,24,6],[22,11,31,13],[11,11,11,12],[13,11,13,12],[8,11,9,12],[8,13,9,13],[25,4,25,6],[26,4,26,6],[3,1,3,9],[11,7,11,8],[10,7,10,8],[14,5,15,8],[13,5,13,8],[12,5,12,8],[32,4,32,6],[20,1,20,6],[4,11,5,13],[6,11,6,13],[27,4,27,6],[28,4,28,6],[29,4,29,6],[30,4,30,6],[31,4,31,6],[5,3,5,5],[6,3,6,5],[5,7,5,8],[6,7,6,8],[9,5,9,8],[21,4,21,6],[22,4,22,6]]}
[0,{"$f":"MAX('BD PRODUCTOS'!B4:B490)","v":"00:00:00"}]
[]
[]
[null,"CONTROL DE INVENTARIO"]
[null,null,null,null,null,null,null,null,null,null,null,"BALANCE"]
[null,null,"CÓDIGO","PRODUCTO",null,null,"UNIDADES DISPONIBLES EN EL INVENTARIO","PRECIO UNITARIO EN EL INVENTARIO"]
[null,null,null,{"$f":"IFERROR(VLOOKUP(C7,Tabla1[],2,0),\"\")","v":""},null,null,{"$f":"INDIRECT(CONCATENATE(\"'\",C7,\"'!L\",MAX(INDIRECT(CONCATENATE(\"'\",C7,\"'!P14:P1000\")))))","v":{"$error":"#REF!"}},{"$f":"INDIRECT(CONCATENATE(\"'\",C7,\"'!M\",MAX(INDIRECT(CONCATENATE(\"'\",C7,\"'!P14:P1000\")))))","v":{"$error":"#REF!"}},null,null,null,{"$f":"D7","v":""}]
[null,null,"* Por favor selecciona el código de producto",null,null,null,null,null,null,null,null,"SALDO INICIAL",null,{"$f":"INDIRECT(CONCATENATE(\"'\",C7,\"'!I4\"))","v":{"$error":"#REF!"}}]
[null,null,null,null,null,null,null,null,null,null,null,"ENTRADAS",null,{"$f":"INDIRECT(CONCATENATE(\"'\",C7,\"'!I5\"))","v":{"$error":"#REF!"}}]
[null,null,"MOVIMIENTO",null,null,{"$f":"IF(OR(D10=Tabla!A2,D10=Tabla!A3,D10=Tabla!A5),\"ENTRADAS AL INVENTARIO\",IF(OR(D10=Tabla!A4,D10=Tabla!A6,D10=Tabla!A7),\"SALIDAS DEL INVENTARIO\",\"\"))","v":""}]
[null,null,null,"* Por favor ingresa el Movimiento de producto",null,"Unidades*","PRECIO UNIDAD*","PRECIO TOTAL",null,null,null,"SALDO FINAL",null,{"$f":"INDIRECT(CONCATENATE(\"'\",C7,\"'!I6\"))","v":{"$error":"#REF!"}}]
[null,null,null,null,null,null,null,{"$f":"F12*G12","v":0},null,null,null,"COSTO DE VENTAS",null,{"$f":"N8+N9-N11","v":{"$error":"#REF!"}}]
[null,null,"FECHA",null,null,"* Por favor registra la cantidad y Precio de Unidades",null,null,null,null,null,"SALIDAS DE INVENTARIO",null,{"$f":"INDIRECT(CONCATENATE(\"'\",C7,\"'!I8\"))","v":{"$error":"#REF!"}}]
[null,null," (DD/MM/AAAA)","* Por favor ingresa la fecha del Movimiento",null,"DESCRIPCIÓN",null,null,null,null,null,"DIFERENCIA",null,{"$f":"ROUND(N12-N13,0)","v":{"$error":"#REF!"}}]
[]
[null,null,"NRO. FACTURA"]
[]
[]
[]
[]
[null,"PRODUCTOS EN INVENTARIO"]
[null,null,"CÓDIGO PRODUCTO","NOMBRE PRODUCTO","DESCRIPCIÓN",null,null,"UNIDADES"]
[null,{"$f":"A1+1","v":1},{"$f":"INDIRECT(CONCATENATE(\"'BD PRODUCTOS'!B\",B23+3))","v":0},{"$f":"IFERROR(VLOOKUP(C23,Tabla1[],2,0),\"\")","v":""},{"$f":"IFERROR(VLOOKUP(C23,Tabla1[],3,0),\"\")","v":""},null,null,{"$f":"IFERROR(INDIRECT(CONCATENATE(\"'\",C23,\"'!L\",MAX(INDIRECT(CONCATENATE(\"'\",C23,\"'!P14:P1000\"))))),\"\")","v":""}]
[null,{"$f":"B23+1","v":2},{"$f":"INDIRECT(CONCATENATE(\"'BD PRODUCTOS'!B\",B24+3))","v":0},{"$f":"IFERROR(VLOOKUP(C24,Tabla1[],2,0),\"\")","v":""},{"$f":"IFERROR(VLOOKUP(C24,Tabla1[],3,0),\"\")","v":""},null,null,{"$f":"IFERROR(INDIRECT(CONCATENATE(\"'\",C24,\"'!L\",MAX(INDIRECT(CONCATENATE(\"'\",C24,\"'!P14:P1000\"))))),\"\")","v":""}]
[null,{"$f":"B24+1","v":3},0,{"$f":"IFERROR(VLOOKUP(C25,Tabla1[],2,0),\"\")","v":""},{"$f":"IFERROR(VLOOKUP(C25,Tabla1[],3,0),\"\")","v":""},null,null,""]
[null,4,0,{"$f":"IFERROR(VLOOKUP(C26,Tabla1[],2,0),\"\")","v":""},{"$f":"IFERROR(VLOOKUP(C26,Tabla1[],3,0),\"\")","v":""},null,null,""]
[null,5,0,{"$f":"IFERROR(VLOOKUP(C27,Tabla1[],2,0),\"\")","v":""},{"$f":"IFERROR(VLOOKUP(C27,Tabla1[],3,0),\"\")","v":""},null,null,""]
[null,6,0,{"$f":"IFERROR(VLOOKUP(C28,Tabla1[],2,0),\"\")","v":""},{"$f":"IFERROR(VLOOKUP(C28,Tabla1[],3,0),\"\")","v":""},null,null,""]
[null,7,0,{"$f":"IFERROR(VLOOKUP(C29,Tabla1[],2,0),\"\")","v":""},{"$f":"IFERROR(VLOOKUP(C29,Tabla1[],3,0),\"\")","v":""},null,null,""]
[null,8,0,{"$f":"IFERROR(VLOOKUP(C30,Tabla1[],2,0),\"\")","v":""},{"$f":"IFERROR(VLOOKUP(C30,Tabla1[],3,0),\"\")","v":""},null,null,""]
[null,9,0,{"$f":"IFERROR(VLOOKUP(C31,Tabla1[],2,0),\"\")","v":""},{"$f":"IFERROR(VLOOKUP(C31,Tabla1[],3,0),\"\")","v":""},null,null,""]
[null,10,0,{"$f":"IFERROR(VLOOKUP(C32,Tabla1[],2,0),\"\")","v":""},{"$f":"IFERROR(VLOOKUP(C32,Tabla1[],3,0),\"\")","v":""},null,null,""]
[null,11,0,{"$f":"IFERROR(VLOOKUP(C33,Tabla1[],2,0),\"\")","v":""},{"$f":"IFERROR(VLOOKUP(C33,Tabla1[],3,0),\"\")","v":""},null,null,""]